Workbook

Sheet ТЕСТ
A1: 0.1 | B1: 0.1 | C1: 0.5 | D1: 0.1 | E1: 1.1 | F1: 0.1 | G1: 0.5 | H1: 1.1 | I1: 1.1 | J1: 1.1 | K1: 1.1 | L1: 0.5 | M1: 0.5 | N1: 0.5 | O1: 0.5 | R1: =_xlfn._xlws.FILTER($P$4:$P$32977,$Q$4:$Q$32977=R3,"") ->  | S1: =_xlfn._xlws.FILTER($P$4:$P$32977,$Q$4:$Q$32977=S3,"") ->  | T1: =_xlfn._xlws.FILTER($P$4:$P$32977,$Q$4:$Q$32977=T3,"") ->  | U1: =_xlfn._xlws.FILTER($P$4:$P$32977,$Q$4:$Q$32977=U3,"") ->  | V1: =_xlfn._xlws.FILTER($P$4:$P$32977,$Q$4:$Q$32977=V3,"") ->  | W1: =_xlfn._xlws.FILTER($P$4:$P$32977,$Q$4:$Q$32977=W3,"") ->  | X1: =COUNTIF($P$4:$P$32977,X2) -> 0 | Y1: =COUNTIF($P$4:$P$32977,Y2) -> 0 | Z1: =COUNTIF($P$4:$P$32977,Z2) -> 0 | AA1: =COUNTIF($P$4:$P$32977,AA2) -> 0 | AB1: =COUNTIF($P$4:$P$32977,AB2) -> 0 | AC1: =COUNTIF($P$4:$P$32977,AC2) -> 0 | AD1: =COUNTIF($P$4:$P$32977,AD2) -> 0 | AE1: =COUNTIF($P$4:$P$32977,AE2) -> 0 | AF1: =COUNTIF($P$4:$P$32977,AF2) -> 0 | AG1: =COUNTIF($P$4:$P$32977,AG2) -> 0 | AH1: =COUNTIF($P$4:$P$32977,AH2) -> 0 | AI1: =COUNTIF($P$4:$P$32977,AI2) -> 0 | AJ1: =COUNTIF($P$4:$P$32977,AJ2) -> 0 | AK1: =COUNTIF($P$4:$P$32977,AK2) -> 0 | AL1: =COUNTIF($P$4:$P$32977,AL2) -> 0 | AM1: =COUNTIF($P$4:$P$32977,AM2) -> 0
R2: =#REF! ->  | S2: =#REF! ->  | T2: =#REF! ->  | U2: =#REF! ->  | V2: =#REF! ->  | W2: =#REF! -> 
R3: =#REF! ->  | S3: =#REF! ->  | T3: =#REF! ->  | U3: =#REF! ->  | V3: =#REF! ->  | W3: =#REF! -> 
A4: 0.1 | B4: 0.1 | C4: 0.5 | D4: 0.1 | E4: 1.1 | F4: 0.1 | G4: 1.1 | H4: 1.1 | I4: 1.1 | J4: 1.1 | K4: 0.5 | L4: 0.5 | M4: 0.5 | N4: 0.5 | O4: 0.5 | P4: =SUM(A4:O4) -> 8.9 | Q4: =P4/3 -> 2.966666667
A5: 0.1 | B5: 0.1 | C5: 0.5 | D5: 0.1 | E5: 1.1 | F5: 0.5 | G5: 0.5 | H5: 0.1 | I5: 1.1 | J5: 1.1 | K5: 1.1 | L5: 0.5 | M5: 0.5 | N5: 0.5 | O5: 1.1 | P5: 8.9 | Q5: 2.966666667
A6: 0.1 | B6: 0.1 | C6: 0.5 | D6: 0.1 | E6: 1.1 | F6: 0.5 | G6: 0.5 | H6: 1.1 | I6: 0.1 | J6: 1.1 | K6: 1.1 | L6: 0.5 | M6: 0.5 | N6: 0.5 | O6: 1.1 | P6: 8.9 | Q6: 2.966666667
A7: 0.1 | B7: 0.1 | C7: 0.5 | D7: 0.1 | E7: 1.1 | F7: 0.5 | G7: 0.5 | H7: 1.1 | I7: 1.1 | J7: 0.1 | K7: 1.1 | L7: 0.5 | M7: 0.5 | N7: 0.5 | O7: 1.1 | P7: 8.9 | Q7: 2.966666667
A8: 0.1 | B8: 0.1 | C8: 0.5 | D8: 0.1 | E8: 1.1 | F8: 0.5 | G8: 0.5 | H8: 1.1 | I8: 1.1 | J8: 1.1 | K8: 0.5 | L8: 0.1 | M8: 0.5 | N8: 0.5 | O8: 1.1 | P8: 8.9 | Q8: 2.966666667
A9: 0.1 | B9: 0.1 | C9: 0.5 | D9: 0.1 | E9: 1.1 | F9: 0.5 | G9: 0.5 | H9: 1.1 | I9: 1.1 | J9: 1.1 | K9: 0.5 | L9: 0.5 | M9: 0.1 | N9: 0.5 | O9: 1.1 | P9: 8.9 | Q9: 2.966666667
A10: 0.1 | B10: 0.1 | C10: 0.5 | D10: 0.1 | E10: 1.1 | F10: 0.5 | G10: 0.5 | H10: 1.1 | I10: 1.1 | J10: 1.1 | K10: 0.5 | L10: 0.5 | M10: 0.5 | N10: 0.1 | O10: 1.1 | P10: 8.9 | Q10: 2.966666667
A11: 0.1 | B11: 0.1 | C11: 0.5 | D11: 0.1 | E11: 1.1 | F11: 0.5 | G11: 0.5 | H11: 1.1 | I11: 1.1 | J11: 1.1 | K11: 1.1 | L11: 0.1 | M11: 0.5 | N11: 0.5 | O11: 0.5 | P11: 8.9 | Q11: 2.966666667
A12: 0.1 | B12: 0.1 | C12: 0.5 | D12: 0.1 | E12: 1.1 | F12: 0.5 | G12: 0.5 | H12: 1.1 | I12: 1.1 | J12: 1.1 | K12: 1.1 | L12: 0.5 | M12: 0.1 | N12: 0.5 | O12: 0.5 | P12: 8.9 | Q12: 2.966666667
A13: 0.1 | B13: 0.1 | C13: 0.5 | D13: 0.1 | E13: 1.1 | F13: 0.5 | G13: 0.5 | H13: 1.1 | I13: 1.1 | J13: 1.1 | K13: 1.1 | L13: 0.5 | M13: 0.5 | N13: 0.1 | O13: 0.5 | P13: 8.9 | Q13: 2.966666667
A14: 0.1 | B14: 0.1 | C14: 0.5 | D14: 0.1 | E14: 1.1 | F14: 0.5 | G14: 1.1 | H14: 0.1 | I14: 1.1 | J14: 1.1 | K14: 0.5 | L14: 0.5 | M14: 0.5 | N14: 0.5 | O14: 1.1 | P14: 8.9 | Q14: 2.966666667
A15: 0.1 | B15: 0.1 | C15: 0.5 | D15: 0.1 | E15: 1.1 | F15: 0.5 | G15: 1.1 | H15: 0.1 | I15: 1.1 | J15: 1.1 | K15: 1.1 | L15: 0.5 | M15: 0.5 | N15: 0.5 | O15: 0.5 | P15: 8.9 | Q15: 2.966666667
A16: 0.1 | B16: 0.1 | C16: 0.5 | D16: 0.1 | E16: 1.1 | F16: 0.5 | G16: 1.1 | H16: 1.1 | I16: 0.1 | J16: 1.1 | K16: 0.5 | L16: 0.5 | M16: 0.5 | N16: 0.5 | O16: 1.1 | P16: 8.9 | Q16: 2.966666667
A17: 0.1 | B17: 0.1 | C17: 0.5 | D17: 0.1 | E17: 1.1 | F17: 0.5 | G17: 1.1 | H17: 1.1 | I17: 0.1 | J17: 1.1 | K17: 1.1 | L17: 0.5 | M17: 0.5 | N17: 0.5 | O17: 0.5 | P17: 8.9 | Q17: 2.966666667
A18: 0.1 | B18: 0.1 | C18: 0.5 | D18: 0.1 | E18: 1.1 | F18: 0.5 | G18: 1.1 | H18: 1.1 | I18: 1.1 | J18: 0.1 | K18: 0.5 | L18: 0.5 | M18: 0.5 | N18: 0.5 | O18: 1.1 | P18: 8.9 | Q18: 2.966666667
A19: 0.1 | B19: 0.1 | C19: 0.5 | D19: 0.1 | E19: 1.1 | F19: 0.5 | G19: 1.1 | H19: 1.1 | I19: 1.1 | J19: 0.1 | K19: 1.1 | L19: 0.5 | M19: 0.5 | N19: 0.5 | O19: 0.5 | P19: 8.9 | Q19: 2.966666667
A20: 0.1 | B20: 0.1 | C20: 0.5 | D20: 0.1 | E20: 1.1 | F20: 0.5 | G20: 1.1 | H20: 1.1 | I20: 1.1 | J20: 1.1 | K20: 0.5 | L20: 0.1 | M20: 0.5 | N20: 0.5 | O20: 0.5 | P20: 8.9 | Q20: 2.966666667 | R20: 7 | S20: 6 | T20: 9 | U20: 6 | V20: 9 | W20: 8 | X20: 0 | Y20: 0 | Z20: 13 | AA20: 30 | AB20: 80 | AC20: 228 | AD20: 201 | AE20: 445 | AF20: 223 | AG20: 285 | AH20: 111 | AI20: 57 | AJ20: 18 | AK20: 3 | AL20: 0 | AM20: 0
A21: 0.1 | B21: 0.1 | C21: 0.5 | D21: 0.1 | E21: 1.1 | F21: 0.5 | G21: 1.1 | H21: 1.1 | I21: 1.1 | J21: 1.1 | K21: 0.5 | L21: 0.5 | M21: 0.1 | N21: 0.5 | O21: 0.5 | P21: 8.9 | Q21: 2.966666667 | R21: 7 | S21: 6 | T21: 9 | U21: 6 | V21: 9 | W21: 8 | X21: 0 | Y21: 0 | Z21: 12 | AA21: 30 | AB21: 80 | AC21: 228 | AD21: 201 | AE21: 445 | AF21: 223 | AG21: 285 | AH21: 111 | AI21: 57 | AJ21: 18 | AK21: 3 | AL21: 0 | AM21: 0
A22: 0.1 | B22: 0.1 | C22: 0.5 | D22: 0.1 | E22: 1.1 | F22: 0.5 | G22: 1.1 | H22: 1.1 | I22: 1.1 | J22: 1.1 | K22: 0.5 | L22: 0.5 | M22: 0.5 | N22: 0.1 | O22: 0.5 | P22: 8.9 | Q22: 2.966666667 | R22: 7 | S22: 6 | T22: 9 | U22: 6 | V22: 9 | W22: 8 | X22: 0 | Y22: 0 | Z22: 11 | AA22: 30 | AB22: 80 | AC22: 228 | AD22: 201 | AE22: 445 | AF22: 223 | AG22: 285 | AH22: 111 | AI22: 57 | AJ22: 18 | AK22: 3 | AL22: 0 | AM22: 0
A23: 0.1 | B23: 0.1 | C23: 0.5 | D23: 0.5 | E23: 0.5 | F23: 0.1 | G23: 0.5 | H23: 1.1 | I23: 1.1 | J23: 1.1 | K23: 1.1 | L23: 0.1 | M23: 0.5 | N23: 0.5 | O23: 1.1 | P23: 8.9 | Q23: 2.966666667 | R23: 7 | S23: 6 | T23: 9 | U23: 6 | V23: 9 | W23: 8 | X23: 0 | Y23: 0 | Z23: 16 | AA23: 36 | AB23: 83 | AC23: 228 | AD23: 194 | AE23: 439 | AF23: 221 | AG23: 285 | AH23: 111 | AI23: 57 | AJ23: 18 | AK23: 3 | AL23: 0 | AM23: 0
A24: 0.1 | B24: 0.1 | C24: 0.5 | D24: 0.5 | E24: 0.5 | F24: 0.1 | G24: 0.5 | H24: 1.1 | I24: 1.1 | J24: 1.1 | K24: 1.1 | L24: 0.5 | M24: 0.1 | N24: 0.5 | O24: 1.1 | P24: 8.9 | Q24: 2.966666667 | R24: 7 | S24: 6 | T24: 9 | U24: 6 | V24: 9 | W24: 8 | X24: 0 | Y24: 0 | Z24: 15 | AA24: 36 | AB24: 83 | AC24: 228 | AD24: 194 | AE24: 439 | AF24: 221 | AG24: 285 | AH24: 111 | AI24: 57 | AJ24: 18 | AK24: 3 | AL24: 0 | AM24: 0
A25: 0.1 | B25: 0.1 | C25: 0.5 | D25: 0.5 | E25: 0.5 | F25: 0.1 | G25: 0.5 | H25: 1.1 | I25: 1.1 | J25: 1.1 | K25: 1.1 | L25: 0.5 | M25: 0.5 | N25: 0.1 | O25: 1.1 | P25: 8.9 | Q25: 2.966666667 | R25: 7 | S25: 6 | T25: 9 | U25: 6 | V25: 9 | W25: 8 | X25: 0 | Y25: 0 | Z25: 14 | AA25: 36 | AB25: 83 | AC25: 228 | AD25: 194 | AE25: 439 | AF25: 221 | AG25: 285 | AH25: 111 | AI25: 57 | AJ25: 18 | AK25: 3 | AL25: 0 | AM25: 0
A26: 0.1 | B26: 0.1 | C26: 0.5 | D26: 0.5 | E26: 0.5 | F26: 0.1 | G26: 1.1 | H26: 0.1 | I26: 1.1 | J26: 1.1 | K26: 1.1 | L26: 0.5 | M26: 0.5 | N26: 0.5 | O26: 1.1 | P26: 8.9 | Q26: 2.966666667 | R26: 6 | S26: 7 | T26: 8 | U26: 7 | V26: 8 | W26: 9 | X26: 0 | Y26: 0 | Z26: 19 | AA26: 18 | AB26: 124 | AC26: 138 | AD26: 332 | AE26: 270 | AF26: 380 | AG26: 178 | AH26: 168 | AI26: 36 | AJ26: 24 | AK26: 1 | AL26: 0 | AM26: 0
A27: 0.1 | B27: 0.1 | C27: 0.5 | D27: 0.5 | E27: 0.5 | F27: 0.1 | G27: 1.1 | H27: 1.1 | I27: 0.1 | J27: 1.1 | K27: 1.1 | L27: 0.5 | M27: 0.5 | N27: 0.5 | O27: 1.1 | P27: 8.9 | Q27: 2.966666667 | R27: 6 | S27: 7 | T27: 8 | U27: 7 | V27: 8 | W27: 9 | X27: 0 | Y27: 0 | Z27: 18 | AA27: 18 | AB27: 124 | AC27: 138 | AD27: 332 | AE27: 270 | AF27: 380 | AG27: 178 | AH27: 168 | AI27: 36 | AJ27: 24 | AK27: 1 | AL27: 0 | AM27: 0
A28: 0.1 | B28: 0.1 | C28: 0.5 | D28: 0.5 | E28: 0.5 | F28: 0.1 | G28: 1.1 | H28: 1.1 | I28: 1.1 | J28: 0.1 | K28: 1.1 | L28: 0.5 | M28: 0.5 | N28: 0.5 | O28: 1.1 | P28: 8.9 | Q28: 2.966666667 | R28: 6 | S28: 7 | T28: 8 | U28: 7 | V28: 8 | W28: 9 | X28: 0 | Y28: 0 | Z28: 17 | AA28: 18 | AB28: 124 | AC28: 138 | AD28: 332 | AE28: 270 | AF28: 380 | AG28: 178 | AH28: 168 | AI28: 36 | AJ28: 24 | AK28: 1 | AL28: 0 | AM28: 0
A29: 0.1 | B29: 0.1 | C29: 0.5 | D29: 0.5 | E29: 0.5 | F29: 0.1 | G29: 1.1 | H29: 1.1 | I29: 1.1 | J29: 1.1 | K29: 0.5 | L29: 0.1 | M29: 0.5 | N29: 0.5 | O29: 1.1 | P29: 8.9 | Q29: 2.966666667 | R29: 7 | S29: 6 | T29: 9 | U29: 6 | V29: 9 | W29: 8 | X29: 0 | Y29: 0 | Z29: 15 | AA29: 33 | AB29: 81 | AC29: 228 | AD29: 194 | AE29: 439 | AF29: 221 | AG29: 285 | AH29: 111 | AI29: 57 | AJ29: 18 | AK29: 3 | AL29: 0 | AM29: 0
A30: 0.1 | B30: 0.1 | C30: 0.5 | D30: 0.5 | E30: 0.5 | F30: 0.1 | G30: 1.1 | H30: 1.1 | I30: 1.1 | J30: 1.1 | K30: 0.5 | L30: 0.5 | M30: 0.1 | N30: 0.5 | O30: 1.1 | P30: 8.9 | Q30: 2.966666667 | R30: 7 | S30: 6 | T30: 9 | U30: 6 | V30: 9 | W30: 8 | X30: 0 | Y30: 0 | Z30: 14 | AA30: 33 | AB30: 81 | AC30: 228 | AD30: 194 | AE30: 439 | AF30: 221 | AG30: 285 | AH30: 111 | AI30: 57 | AJ30: 18 | AK30: 3 | AL30: 0 | AM30: 0
A31: 0.1 | B31: 0.1 | C31: 0.5 | D31: 0.5 | E31: 0.5 | F31: 0.1 | G31: 1.1 | H31: 1.1 | I31: 1.1 | J31: 1.1 | K31: 0.5 | L31: 0.5 | M31: 0.5 | N31: 0.1 | O31: 1.1 | P31: 8.9 | Q31: 2.966666667 | R31: 7 | S31: 6 | T31: 9 | U31: 6 | V31: 9 | W31: 8 | X31: 0 | Y31: 0 | Z31: 13 | AA31: 33 | AB31: 81 | AC31: 228 | AD31: 194 | AE31: 439 | AF31: 221 | AG31: 285 | AH31: 111 | AI31: 57 | AJ31: 18 | AK31: 3 | AL31: 0 | AM31: 0
A32: 0.1 | B32: 0.1 | C32: 0.5 | D32: 0.5 | E32: 0.5 | F32: 0.1 | G32: 1.1 | H32: 1.1 | I32: 1.1 | J32: 1.1 | K32: 1.1 | L32: 0.1 | M32: 0.5 | N32: 0.5 | O32: 0.5 | P32: 8.9 | Q32: 2.966666667 | R32: 7 | S32: 6 | T32: 9 | U32: 6 | V32: 9 | W32: 8 | X32: 0 | Y32: 0 | Z32: 14 | AA32: 33 | AB32: 79 | AC32: 228 | AD32: 194 | AE32: 439 | AF32: 221 | AG32: 285 | AH32: 111 | AI32: 57 | AJ32: 18 | AK32: 3 | AL32: 0 | AM32: 0
A33: 0.1 | B33: 0.1 | C33: 0.5 | D33: 0.5 | E33: 0.5 | F33: 0.1 | G33: 1.1 | H33: 1.1 | I33: 1.1 | J33: 1.1 | K33: 1.1 | L33: 0.5 | M33: 0.1 | N33: 0.5 | O33: 0.5 | P33: 8.9 | Q33: 2.966666667 | R33: 7 | S33: 6 | T33: 9 | U33: 6 | V33: 9 | W33: 8 | X33: 0 | Y33: 0 | Z33: 13 | AA33: 33 | AB33: 79 | AC33: 228 | AD33: 194 | AE33: 439 | AF33: 221 | AG33: 285 | AH33: 111 | AI33: 57 | AJ33: 18 | AK33: 3 | AL33: 0 | AM33: 0
A34: 0.1 | B34: 0.1 | C34: 0.5 | D34: 0.5 | E34: 0.5 | F34: 0.1 | G34: 1.1 | H34: 1.1 | I34: 1.1 | J34: 1.1 | K34: 1.1 | L34: 0.5 | M34: 0.5 | N34: 0.1 | O34: 0.5 | P34: 8.9 | Q34: 2.966666667 | R34: 7 | S34: 6 | T34: 9 | U34: 6 | V34: 9 | W34: 8 | X34: 0 | Y34: 0 | Z34: 12 | AA34: 33 | AB34: 79 | AC34: 228 | AD34: 194 | AE34: 439 | AF34: 221 | AG34: 285 | AH34: 111 | AI34: 57 | AJ34: 18 | AK34: 3 | AL34: 0 | AM34: 0
A35: 0.1 | B35: 0.1 | C35: 0.5 | D35: 0.5 | E35: 0.5 | F35: 0.5 | G35: 0.5 | H35: 1.1 | I35: 1.1 | J35: 1.1 | K35: 1.1 | L35: 0.1 | M35: 0.1 | N35: 0.5 | O35: 1.1 | P35: 8.9 | Q35: 2.966666667 | R35: 7 | S35: 6 | T35: 9 | U35: 6 | V35: 9 | W35: 8 | X35: 0 | Y35: 0 | Z35: 14 | AA35: 36 | AB35: 78 | AC35: 225 | AD35: 192 | AE35: 439 | AF35: 221 | AG35: 285 | AH35: 111 | AI35: 57 | AJ35: 18 | AK35: 3 | AL35: 0 | AM35: 0
A36: 0.1 | B36: 0.1 | C36: 0.5 | D36: 0.5 | E36: 0.5 | F36: 0.5 | G36: 0.5 | H36: 1.1 | I36: 1.1 | J36: 1.1 | K36: 1.1 | L36: 0.1 | M36: 0.5 | N36: 0.1 | O36: 1.1 | P36: 8.9 | Q36: 2.966666667 | R36: 7 | S36: 6 | T36: 9 | U36: 6 | V36: 9 | W36: 8 | X36: 0 | Y36: 0 | Z36: 13 | AA36: 36 | AB36: 78 | AC36: 225 | AD36: 192 | AE36: 439 | AF36: 221 | AG36: 285 | AH36: 111 | AI36: 57 | AJ36: 18 | AK36: 3 | AL36: 0 | AM36: 0
A37: 0.1 | B37: 0.1 | C37: 0.5 | D37: 0.5 | E37: 0.5 | F37: 0.5 | G37: 0.5 | H37: 1.1 | I37: 1.1 | J37: 1.1 | K37: 1.1 | L37: 0.5 | M37: 0.1 | N37: 0.1 | O37: 1.1 | P37: 8.9 | Q37: 2.966666667 | R37: 7 | S37: 6 | T37: 9 | U37: 6 | V37: 9 | W37: 8 | X37: 0 | Y37: 0 | Z37: 12 | AA37: 36 | AB37: 78 | AC37: 225 | AD37: 192 | AE37: 439 | AF37: 221 | AG37: 285 | AH37: 111 | AI37: 57 | AJ37: 18 | AK37: 3 | AL37: 0 | AM37: 0
A38: 0.1 | B38: 0.1 | C38: 0.5 | D38: 0.5 | E38: 0.5 | F38: 0.5 | G38: 1.1 | H38: 0.1 | I38: 1.1 | J38: 1.1 | K38: 1.1 | L38: 0.1 | M38: 0.5 | N38: 0.5 | O38: 1.1 | P38: 8.9 | Q38: 2.966666667 | R38: 6 | S38: 7 | T38: 8 | U38: 7 | V38: 8 | W38: 9 | X38: 0 | Y38: 0 | Z38: 18 | AA38: 16 | AB38: 122 | AC38: 131 | AD38: 332 | AE38: 270 | AF38: 380 | AG38: 178 | AH38: 168 | AI38: 36 | AJ38: 24 | AK38: 1 | AL38: 0 | AM38: 0
A39: 0.1 | B39: 0.1 | C39: 0.5 | D39: 0.5 | E39: 0.5 | F39: 0.5 | G39: 1.1 | H39: 0.1 | I39: 1.1 | J39: 1.1 | K39: 1.1 | L39: 0.5 | M39: 0.1 | N39: 0.5 | O39: 1.1 | P39: 8.9 | Q39: 2.966666667 | R39: 6 | S39: 7 | T39: 8 | U39: 7 | V39: 8 | W39: 9 | X39: 0 | Y39: 0 | Z39: 17 | AA39: 16 | AB39: 122 | AC39: 131 | AD39: 332 | AE39: 270 | AF39: 380 | AG39: 178 | AH39: 168 | AI39: 36 | AJ39: 24 | AK39: 1 | AL39: 0 | AM39: 0
A40: 0.1 | B40: 0.1 | C40: 0.5 | D40: 0.5 | E40: 0.5 | F40: 0.5 | G40: 1.1 | H40: 0.1 | I40: 1.1 | J40: 1.1 | K40: 1.1 | L40: 0.5 | M40: 0.5 | N40: 0.1 | O40: 1.1 | P40: 8.9 | Q40: 2.966666667 | R40: 6 | S40: 7 | T40: 8 | U40: 7 | V40: 8 | W40: 9 | X40: 0 | Y40: 0 | Z40: 16 | AA40: 16 | AB40: 122 | AC40: 131 | AD40: 332 | AE40: 270 | AF40: 380 | AG40: 178 | AH40: 168 | AI40: 36 | AJ40: 24 | AK40: 1 | AL40: 0 | AM40: 0
A41: 0.1 | B41: 0.1 | C41: 0.5 | D41: 0.5 | E41: 0.5 | F41: 0.5 | G41: 1.1 | H41: 1.1 | I41: 0.1 | J41: 1.1 | K41: 1.1 | L41: 0.1 | M41: 0.5 | N41: 0.5 | O41: 1.1 | P41: 8.9 | Q41: 2.966666667 | R41: 6 | S41: 7 | T41: 8 | U41: 7 | V41: 8 | W41: 9 | X41: 0 | Y41: 0 | Z41: 17 | AA41: 16 | AB41: 120 | AC41: 131 | AD41: 332 | AE41: 270 | AF41: 380 | AG41: 178 | AH41: 168 | AI41: 36 | AJ41: 24 | AK41: 1 | AL41: 0 | AM41: 0
A42: 0.1 | B42: 0.1 | C42: 0.5 | D42: 0.5 | E42: 0.5 | F42: 0.5 | G42: 1.1 | H42: 1.1 | I42: 0.1 | J42: 1.1 | K42: 1.1 | L42: 0.5 | M42: 0.1 | N42: 0.5 | O42: 1.1 | P42: 8.9 | Q42: 2.966666667 | R42: 6 | S42: 7 | T42: 8 | U42: 7 | V42: 8 | W42: 9 | X42: 0 | Y42: 0 | Z42: 16 | AA42: 16 | AB42: 120 | AC42: 131 | AD42: 332 | AE42: 270 | AF42: 380 | AG42: 178 | AH42: 168 | AI42: 36 | AJ42: 24 | AK42: 1 | AL42: 0 | AM42: 0
A43: 0.1 | B43: 0.1 | C43: 0.5 | D43: 0.5 | E43: 0.5 | F43: 0.5 | G43: 1.1 | H43: 1.1 | I43: 0.1 | J43: 1.1 | K43: 1.1 | L43: 0.5 | M43: 0.5 | N43: 0.1 | O43: 1.1 | P43: 8.9 | Q43: 2.966666667 | R43: 6 | S43: 7 | T43: 8 | U43: 7 | V43: 8 | W43: 9 | X43: 0 | Y43: 0 | Z43: 15 | AA43: 16 | AB43: 120 | AC43: 131 | AD43: 332 | AE43: 270 | AF43: 380 | AG43: 178 | AH43: 168 | AI43: 36 | AJ43: 24 | AK43: 1 | AL43: 0 | AM43: 0
A44: 0.1 | B44: 0.1 | C44: 0.5 | D44: 0.5 | E44: 0.5 | F44: 0.5 | G44: 1.1 | H44: 1.1 | I44: 1.1 | J44: 0.1 | K44: 1.1 | L44: 0.1 | M44: 0.5 | N44: 0.5 | O44: 1.1 | P44: 8.9 | Q44: 2.966666667 | R44: 6 | S44: 7 | T44: 8 | U44: 7 | V44: 8 | W44: 9 | X44: 0 | Y44: 0 | Z44: 16 | AA44: 16 | AB44: 118 | AC44: 131 | AD44: 332 | AE44: 270 | AF44: 380 | AG44: 178 | AH44: 168 | AI44: 36 | AJ44: 24 | AK44: 1 | AL44: 0 | AM44: 0
A45: 0.1 | B45: 0.1 | C45: 0.5 | D45: 0.5 | E45: 0.5 | F45: 0.5 | G45: 1.1 | H45: 1.1 | I45: 1.1 | J45: 0.1 | K45: 1.1 | L45: 0.5 | M45: 0.1 | N45: 0.5 | O45: 1.1 | P45: 8.9 | Q45: 2.966666667 | R45: 6 | S45: 7 | T45: 8 | U45: 7 | V45: 8 | W45: 9 | X45: 0 | Y45: 0 | Z45: 15 | AA45: 16 | AB45: 118 | AC45: 131 | AD45: 332 | AE45: 270 | AF45: 380 | AG45: 178 | AH45: 168 | AI45: 36 | AJ45: 24 | AK45: 1 | AL45: 0 | AM45: 0
A46: 0.1 | B46: 0.1 | C46: 0.5 | D46: 0.5 | E46: 0.5 | F46: 0.5 | G46: 1.1 | H46: 1.1 | I46: 1.1 | J46: 0.1 | K46: 1.1 | L46: 0.5 | M46: 0.5 | N46: 0.1 | O46: 1.1 | P46: 8.9 | Q46: 2.966666667 | R46: 6 | S46: 7 | T46: 8 | U46: 7 | V46: 8 | W46: 9 | X46: 0 | Y46: 0 | Z46: 14 | AA46: 16 | AB46: 118 | AC46: 131 | AD46: 332 | AE46: 270 | AF46: 380 | AG46: 178 | AH46: 168 | AI46: 36 | AJ46: 24 | AK46: 1 | AL46: 0 | AM46: 0
A47: 0.1 | B47: 0.1 | C47: 0.5 | D47: 0.5 | E47: 0.5 | F47: 0.5 | G47: 1.1 | H47: 1.1 | I47: 1.1 | J47: 1.1 | K47: 0.5 | L47: 0.1 | M47: 0.1 | N47: 0.5 | O47: 1.1 | P47: =SUM(A47:O47) -> 8.9 | Q47: =P47/3 -> 2.966666667 | R47: 7 | S47: 6 | T47: 9 | U47: 6 | V47: 9 | W47: 8 | X47: 0 | Y47: 0 | Z47: 13 | AA47: 30 | AB47: 76 | AC47: 222 | AD47: 192 | AE47: 439 | AF47: 221 | AG47: 285 | AH47: 111 | AI47: 57 | AJ47: 18 | AK47: 3 | AL47: 0 | AM47: 0
A48: 0.1 | B48: 0.1 | C48: 0.5 | D48: 0.5 | E48: 0.5 | F48: 0.5 | G48: 1.1 | H48: 1.1 | I48: 1.1 | J48: 1.1 | K48: 0.5 | L48: 0.1 | M48: 0.5 | N48: 0.1 | O48: 1.1 | P48: 8.9 | Q48: 2.966666667 | R48: 7 | S48: 6 | T48: 9 | U48: 6 | V48: 9 | W48: 8 | X48: 0 | Y48: 0 | Z48: 12 | AA48: 30 | AB48: 76 | AC48: 222 | AD48: 192 | AE48: 439 | AF48: 221 | AG48: 285 | AH48: 111 | AI48: 57 | AJ48: 18 | AK48: 3 | AL48: 0 | AM48: 0
A49: 0.1 | B49: 0.1 | C49: 0.5 | D49: 0.5 | E49: 0.5 | F49: 0.5 | G49: 1.1 | H49: 1.1 | I49: 1.1 | J49: 1.1 | K49: 0.5 | L49: 0.5 | M49: 0.1 | N49: 0.1 | O49: 1.1 | P49: 8.9 | Q49: 2.966666667 | R49: 7 | S49: 6 | T49: 9 | U49: 6 | V49: 9 | W49: 8 | X49: 0 | Y49: 0 | Z49: 11 | AA49: 30 | AB49: 76 | AC49: 222 | AD49: 192 | AE49: 439 | AF49: 221 | AG49: 285 | AH49: 111 | AI49: 57 | AJ49: 18 | AK49: 3 | AL49: 0 | AM49: 0
A50: 0.1 | B50: 0.1 | C50: 0.5 | D50: 0.5 | E50: 0.5 | F50: 0.5 | G50: 1.1 | H50: 1.1 | I50: 1.1 | J50: 1.1 | K50: 1.1 | L50: 0.1 | M50: 0.1 | N50: 0.5 | O50: 0.5 | P50: 8.9 | Q50: 2.966666667 | R50: 7 | S50: 6 | T50: 9 | U50: 6 | V50: 9 | W50: 8 | X50: 0 | Y50: 0 | Z50: 12 | AA50: 30 | AB50: 74 | AC50: 222 | AD50: 192 | AE50: 439 | AF50: 221 | AG50: 285 | AH50: 111 | AI50: 57 | AJ50: 18 | AK50: 3 | AL50: 0 | AM50: 0
A51: 0.1 | B51: 0.1 | C51: 0.5 | D51: 0.5 | E51: 0.5 | F51: 0.5 | G51: 1.1 | H51: 1.1 | I51: 1.1 | J51: 1.1 | K51: 1.1 | L51: 0.1 | M51: 0.5 | N51: 0.1 | O51: 0.5 | P51: 8.9 | Q51: 2.966666667 | R51: 7 | S51: 6 | T51: 9 | U51: 6 | V51: 9 | W51: 8 | X51: 0 | Y51: 0 | Z51: 11 | AA51: 30 | AB51: 74 | AC51: 222 | AD51: 192 | AE51: 439 | AF51: 221 | AG51: 285 | AH51: 111 | AI51: 57 | AJ51: 18 | AK51: 3 | AL51: 0 | AM51: 0
A52: 0.1 | B52: 0.1 | C52: 0.5 | D52: 0.5 | E52: 0.5 | F52: 0.5 | G52: 1.1 | H52: 1.1 | I52: 1.1 | J52: 1.1 | K52: 1.1 | L52: 0.5 | M52: 0.1 | N52: 0.1 | O52: 0.5 | P52: 8.9 | Q52: 2.966666667 | R52: 7 | S52: 6 | T52: 9 | U52: 6 | V52: 9 | W52: 8 | X52: 0 | Y52: 0 | Z52: 10 | AA52: 30 | AB52: 74 | AC52: 222 | AD52: 192 | AE52: 439 | AF52: 221 | AG52: 285 | AH52: 111 | AI52: 57 | AJ52: 18 | AK52: 3 | AL52: 0 | AM52: 0
A53: 0.1 | B53: 0.1 | C53: 0.5 | D53: 0.5 | E53: 1.1 | F53: 0.1 | G53: 0.5 | H53: 0.1 | I53: 1.1 | J53: 1.1 | K53: 1.1 | L53: 0.5 | M53: 0.5 | N53: 0.5 | O53: 1.1 | P53: 8.9 | Q53: 2.966666667 | R53: 6 | S53: 7 | T53: 8 | U53: 7 | V53: 8 | W53: 9 | X53: 0 | Y53: 0 | Z53: 18 | AA53: 18 | AB53: 119 | AC53: 129 | AD53: 326 | AE53: 264 | AF53: 380 | AG53: 178 | AH53: 168 | AI53: 36 | AJ53: 24 | AK53: 1 | AL53: 0 | AM53: 0
A54: 0.1 | B54: 0.1 | C54: 0.5 | D54: 0.5 | E54: 1.1 | F54: 0.1 | G54: 0.5 | H54: 1.1 | I54: 0.1 | J54: 1.1 | K54: 1.1 | L54: 0.5 | M54: 0.5 | N54: 0.5 | O54: 1.1 | P54: 8.9 | Q54: 2.966666667 | R54: 6 | S54: 7 | T54: 8 | U54: 7 | V54: 8 | W54: 9 | X54: 0 | Y54: 0 | Z54: 17 | AA54: 18 | AB54: 119 | AC54: 129 | AD54: 326 | AE54: 264 | AF54: 380 | AG54: 178 | AH54: 168 | AI54: 36 | AJ54: 24 | AK54: 1 | AL54: 0 | AM54: 0
A55: 0.1 | B55: 0.1 | C55: 0.5 | D55: 0.5 | E55: 1.1 | F55: 0.1 | G55: 0.5 | H55: 1.1 | I55: 1.1 | J55: 0.1 | K55: 1.1 | L55: 0.5 | M55: 0.5 | N55: 0.5 | O55: 1.1 | P55: 8.9 | Q55: 2.966666667 | R55: 6 | S55: 7 | T55: 8 | U55: 7 | V55: 8 | W55: 9 | X55: 0 | Y55: 0 | Z55: 16 | AA55: 18 | AB55: 119 | AC55: 129 | AD55: 326 | AE55: 264 | AF55: 380 | AG55: 178 | AH55: 168 | AI55: 36 | AJ55: 24 | AK55: 1 | AL55: 0 | AM55: 0
A56: 0.1 | B56: 0.1 | C56: 0.5 | D56: 0.5 | E56: 1.1 | F56: 0.1 | G56: 0.5 | H56: 1.1 | I56: 1.1 | J56: 1.1 | K56: 0.5 | L56: 0.1 | M56: 0.5 | N56: 0.5 | O56: 1.1 | P56: 8.9 | Q56: 2.966666667 | R56: 7 | S56: 6 | T56: 9 | U56: 6 | V56: 9 | W56: 8 | X56: 0 | Y56: 0 | Z56: 14 | AA56: 33 | AB56: 74 | AC56: 222 | AD56: 188 | AE56: 433 | AF56: 220 | AG56: 285 | AH56: 111 | AI56: 57 | AJ56: 18 | AK56: 3 | AL56: 0 | AM56: 0
A57: 0.1 | B57: 0.1 | C57: 0.5 | D57: 0.5 | E57: 1.1 | F57: 0.1 | G57: 0.5 | H57: 1.1 | I57: 1.1 | J57: 1.1 | K57: 0.5 | L57: 0.5 | M57: 0.1 | N57: 0.5 | O57: 1.1 | P57: 8.9 | Q57: 2.966666667 | R57: 7 | S57: 6 | T57: 9 | U57: 6 | V57: 9 | W57: 8 | X57: 0 | Y57: 0 | Z57: 13 | AA57: 33 | AB57: 74 | AC57: 222 | AD57: 188 | AE57: 433 | AF57: 220 | AG57: 285 | AH57: 111 | AI57: 57 | AJ57: 18 | AK57: 3 | AL57: 0 | AM57: 0
A58: 0.1 | B58: 0.1 | C58: 0.5 | D58: 0.5 | E58: 1.1 | F58: 0.1 | G58: 0.5 | H58: 1.1 | I58: 1.1 | J58: 1.1 | K58: 0.5 | L58: 0.5 | M58: 0.5 | N58: 0.1 | O58: 1.1 | P58: 8.9 | Q58: 2.966666667 | R58: 7 | S58: 6 | T58: 9 | U58: 6 | V58: 9 | W58: 8 | X58: 0 | Y58: 0 | Z58: 12 | AA58: 33 | AB58: 74 | AC58: 222 | AD58: 188 | AE58: 433 | AF58: 220 | AG58: 285 | AH58: 111 | AI58: 57 | AJ58: 18 | AK58: 3 | AL58: 0 | AM58: 0
A59: 0.1 | B59: 0.1 | C59: 0.5 | D59: 0.5 | E59: 1.1 | F59: 0.1 | G59: 0.5 | H59: 1.1 | I59: 1.1 | J59: 1.1 | K59: 1.1 | L59: 0.1 | M59: 0.5 | N59: 0.5 | O59: 0.5 | P59: 8.9 | Q59: 2.966666667 | R59: 7 | S59: 6 | T59: 9 | U59: 6 | V59: 9 | W59: 8 | X59: 0 | Y59: 0 | Z59: 13 | AA59: 33 | AB59: 72 | AC59: 222 | AD59: 188 | AE59: 433 | AF59: 220 | AG59: 285 | AH59: 111 | AI59: 57 | AJ59: 18 | AK59: 3 | AL59: 0 | AM59: 0
A60: 0.1 | B60: 0.1 | C60: 0.5 | D60: 0.5 | E60: 1.1 | F60: 0.1 | G60: 0.5 | H60: 1.1 | I60: 1.1 | J60: 1.1 | K60: 1.1 | L60: 0.5 | M60: 0.1 | N60: 0.5 | O60: 0.5 | P60: 8.9 | Q60: 2.966666667 | R60: 7 | S60: 6 | T60: 9 | U60: 6 | V60: 9 | W60: 8 | X60: 0 | Y60: 0 | Z60: 12 | AA60: 33 | AB60: 72 | AC60: 222 | AD60: 188 | AE60: 433 | AF60: 220 | AG60: 285 | AH60: 111 | AI60: 57 | AJ60: 18 | AK60: 3 | AL60: 0 | AM60: 0
A61: 0.1 | B61: 0.1 | C61: 0.5 | D61: 0.5 | E61: 1.1 | F61: 0.1 | G61: 0.5 | H61: 1.1 | I61: 1.1 | J61: 1.1 | K61: 1.1 | L61: 0.5 | M61: 0.5 | N61: 0.1 | O61: 0.5 | P61: 8.9 | Q61: 2.966666667 | R61: 7 | S61: 6 | T61: 9 | U61: 6 | V61: 9 | W61: 8 | X61: 0 | Y61: 0 | Z61: 11 | AA61: 33 | AB61: 72 | AC61: 222 | AD61: 188 | AE61: 433 | AF61: 220 | AG61: 285 | AH61: 111 | AI61: 57 | AJ61: 18 | AK61: 3 | AL61: 0 | AM61: 0
A62: 0.1 | B62: 0.1 | C62: 0.5 | D62: 0.5 | E62: 1.1 | F62: 0.1 | G62: 1.1 | H62: 0.1 | I62: 1.1 | J62: 1.1 | K62: 0.5 | L62: 0.5 | M62: 0.5 | N62: 0.5 | O62: 1.1 | P62: 8.9 | Q62: 2.966666667 | R62: 6 | S62: 7 | T62: 8 | U62: 7 | V62: 8 | W62: 9 | X62: 0 | Y62: 0 | Z62: 17 | AA62: 15 | AB62: 117 | AC62: 126 | AD62: 326 | AE62: 264 | AF62: 380 | AG62: 178 | AH62: 168 | AI62: 36 | AJ62: 24 | AK62: 1 | AL62: 0 | AM62: 0
A63: 0.1 | B63: 0.1 | C63: 0.5 | D63: 0.5 | E63: 1.1 | F63: 0.1 | G63: 1.1 | H63: 0.1 | I63: 1.1 | J63: 1.1 | K63: 1.1 | L63: 0.5 | M63: 0.5 | N63: 0.5 | O63: 0.5 | P63: 8.9 | Q63: 2.966666667 | R63: 6 | S63: 7 | T63: 8 | U63: 7 | V63: 8 | W63: 9 | X63: 0 | Y63: 0 | Z63: 16 | AA63: 15 | AB63: 117 | AC63: 126 | AD63: 326 | AE63: 264 | AF63: 380 | AG63: 178 | AH63: 168 | AI63: 36 | AJ63: 24 | AK63: 1 | AL63: 0 | AM63: 0
A64: 0.1 | B64: 0.1 | C64: 0.5 | D64: 0.5 | E64: 1.1 | F64: 0.1 | G64: 1.1 | H64: 1.1 | I64: 0.1 | J64: 1.1 | K64: 0.5 | L64: 0.5 | M64: 0.5 | N64: 0.5 | O64: 1.1 | P64: 8.9 | Q64: 2.966666667 | R64: 6 | S64: 7 | T64: 8 | U64: 7 | V64: 8 | W64: 9 | X64: 0 | Y64: 0 | Z64: 16 | AA64: 15 | AB64: 116 | AC64: 126 | AD64: 326 | AE64: 264 | AF64: 380 | AG64: 178 | AH64: 168 | AI64: 36 | AJ64: 24 | AK64: 1 | AL64: 0 | AM64: 0
A65: 0.1 | B65: 0.1 | C65: 0.5 | D65: 0.5 | E65: 1.1 | F65: 0.1 | G65: 1.1 | H65: 1.1 | I65: 0.1 | J65: 1.1 | K65: 1.1 | L65: 0.5 | M65: 0.5 | N65: 0.5 | O65: 0.5 | P65: 8.9 | Q65: 2.966666667 | R65: 6 | S65: 7 | T65: 8 | U65: 7 | V65: 8 | W65: 9 | X65: 0 | Y65: 0 | Z65: 15 | AA65: 15 | AB65: 116 | AC65: 126 | AD65: 326 | AE65: 264 | AF65: 380 | AG65: 178 | AH65: 168 | AI65: 36 | AJ65: 24 | AK65: 1 | AL65: 0 | AM65: 0
A66: 0.1 | B66: 0.1 | C66: 0.5 | D66: 0.5 | E66: 1.1 | F66: 0.1 | G66: 1.1 | H66: 1.1 | I66: 1.1 | J66: 0.1 | K66: 0.5 | L66: 0.5 | M66: 0.5 | N66: 0.5 | O66: 1.1 | P66: 8.9 | Q66: 2.966666667 | R66: 6 | S66: 7 | T66: 8 | U66: 7 | V66: 8 | W66: 9 | X66: 0 | Y66: 0 | Z66: 15 | AA66: 15 | AB66: 115 | AC66: 126 | AD66: 326 | AE66: 264 | AF66: 380 | AG66: 178 | AH66: 168 | AI66: 36 | AJ66: 24 | AK66: 1 | AL66: 0 | AM66: 0
A67: 0.1 | B67: 0.1 | C67: 0.5 | D67: 0.5 | E67: 1.1 | F67: 0.1 | G67: 1.1 | H67: 1.1 | I67: 1.1 | J67: 0.1 | K67: 1.1 | L67: 0.5 | M67: 0.5 | N67: 0.5 | O67: 0.5 | P67: 8.9 | Q67: 2.966666667 | R67: 6 | S67: 7 | T67: 8 | U67: 7 | V67: 8 | W67: 9 | X67: 0 | Y67: 0 | Z67: 14 | AA67: 15 | AB67: 115 | AC67: 126 | AD67: 326 | AE67: 264 | AF67: 380 | AG67: 178 | AH67: 168 | AI67: 36 | AJ67: 24 | AK67: 1 | AL67: 0 | AM67: 0
A68: 0.1 | B68: 0.1 | C68: 0.5 | D68: 0.5 | E68: 1.1 | F68: 0.1 | G68: 1.1 | H68: 1.1 | I68: 1.1 | J68: 1.1 | K68: 0.5 | L68: 0.1 | M68: 0.5 | N68: 0.5 | O68: 0.5 | P68: 8.9 | Q68: 2.966666667 | R68: 7 | S68: 6 | T68: 9 | U68: 6 | V68: 9 | W68: 8 | X68: 0 | Y68: 0 | Z68: 12 | AA68: 30 | AB68: 70 | AC68: 219 | AD68: 188 | AE68: 433 | AF68: 220 | AG68: 285 | AH68: 111 | AI68: 57 | AJ68: 18 | AK68: 3 | AL68: 0 | AM68: 0
A69: 0.1 | B69: 0.1 | C69: 0.5 | D69: 0.5 | E69: 1.1 | F69: 0.1 | G69: 1.1 | H69: 1.1 | I69: 1.1 | J69: 1.1 | K69: 0.5 | L69: 0.5 | M69: 0.1 | N69: 0.5 | O69: 0.5 | P69: 8.9 | Q69: 2.966666667 | R69: 7 | S69: 6 | T69: 9 | U69: 6 | V69: 9 | W69: 8 | X69: 0 | Y69: 0 | Z69: 11 | AA69: 30 | AB69: 70 | AC69: 219 | AD69: 188 | AE69: 433 | AF69: 220 | AG69: 285 | AH69: 111 | AI69: 57 | AJ69: 18 | AK69: 3 | AL69: 0 | AM69: 0
A70: 0.1 | B70: 0.1 | C70: 0.5 | D70: 0.5 | E70: 1.1 | F70: 0.1 | G70: 1.1 | H70: 1.1 | I70: 1.1 | J70: 1.1 | K70: 0.5 | L70: 0.5 | M70: 0.5 | N70: 0.1 | O70: 0.5 | P70: 8.9 | Q70: 2.966666667 | R70: 7 | S70: 6 | T70: 9 | U70: 6 | V70: 9 | W70: 8 | X70: 0 | Y70: 0 | Z70: 10 | AA70: 30 | AB70: 70 | AC70: 219 | AD70: 188 | AE70: 433 | AF70: 220 | AG70: 285 | AH70: 111 | AI70: 57 | AJ70: 18 | AK70: 3 | AL70: 0 | AM70: 0
A71: 0.1 | B71: 0.1 | C71: 0.5 | D71: 0.5 | E71: 1.1 | F71: 0.5 | G71: 0.5 | H71: 0.1 | I71: 1.1 | J71: 1.1 | K71: 1.1 | L71: 0.1 | M71: 0.5 | N71: 0.5 | O71: 1.1 | P71: 8.9 | Q71: 2.966666667 | R71: 6 | S71: 7 | T71: 8 | U71: 7 | V71: 8 | W71: 9 | X71: 0 | Y71: 0 | Z71: 17 | AA71: 16 | AB71: 115 | AC71: 124 | AD71: 322 | AE71: 262 | AF71: 380 | AG71: 178 | AH71: 168 | AI71: 36 | AJ71: 24 | AK71: 1 | AL71: 0 | AM71: 0
A72: 0.1 | B72: 0.1 | C72: 0.5 | D72: 0.5 | E72: 1.1 | F72: 0.5 | G72: 0.5 | H72: 0.1 | I72: 1.1 | J72: 1.1 | K72: 1.1 | L72: 0.5 | M72: 0.1 | N72: 0.5 | O72: 1.1 | P72: 8.9 | Q72: 2.966666667 | R72: 6 | S72: 7 | T72: 8 | U72: 7 | V72: 8 | W72: 9 | X72: 0 | Y72: 0 | Z72: 16 | AA72: 16 | AB72: 115 | AC72: 124 | AD72: 322 | AE72: 262 | AF72: 380 | AG72: 178 | AH72: 168 | AI72: 36 | AJ72: 24 | AK72: 1 | AL72: 0 | AM72: 0
A73: 0.1 | B73: 0.1 | C73: 0.5 | D73: 0.5 | E73: 1.1 | F73: 0.5 | G73: 0.5 | H73: 0.1 | I73: 1.1 | J73: 1.1 | K73: 1.1 | L73: 0.5 | M73: 0.5 | N73: 0.1 | O73: 1.1 | P73: 8.9 | Q73: 2.966666667 | R73: 6 | S73: 7 | T73: 8 | U73: 7 | V73: 8 | W73: 9 | X73: 0 | Y73: 0 | Z73: 15 | AA73: 16 | AB73: 115 | AC73: 124 | AD73: 322 | AE73: 262 | AF73: 380 | AG73: 178 | AH73: 168 | AI73: 36 | AJ73: 24 | AK73: 1 | AL73: 0 | AM73: 0
A74: 0.1 | B74: 0.1 | C74: 0.5 | D74: 0.5 | E74: 1.1 | F74: 0.5 | G74: 0.5 | H74: 1.1 | I74: 0.1 | J74: 1.1 | K74: 1.1 | L74: 0.1 | M74: 0.5 | N74: 0.5 | O74: 1.1 | P74: 8.9 | Q74: 2.966666667 | R74: 6 | S74: 7 | T74: 8 | U74: 7 | V74: 8 | W74: 9 | X74: 0 | Y74: 0 | Z74: 16 | AA74: 16 | AB74: 113 | AC74: 124 | AD74: 322 | AE74: 262 | AF74: 380 | AG74: 178 | AH74: 168 | AI74: 36 | AJ74: 24 | AK74: 1 | AL74: 0 | AM74: 0
A75: 0.1 | B75: 0.1 | C75: 0.5 | D75: 0.5 | E75: 1.1 | F75: 0.5 | G75: 0.5 | H75: 1.1 | I75: 0.1 | J75: 1.1 | K75: 1.1 | L75: 0.5 | M75: 0.1 | N75: 0.5 | O75: 1.1 | P75: 8.9 | Q75: 2.966666667 | R75: 6 | S75: 7 | T75: 8 | U75: 7 | V75: 8 | W75: 9 | X75: 0 | Y75: 0 | Z75: 15 | AA75: 16 | AB75: 113 | AC75: 124 | AD75: 322 | AE75: 262 | AF75: 380 | AG75: 178 | AH75: 168 | AI75: 36 | AJ75: 24 | AK75: 1 | AL75: 0 | AM75: 0
A76: 0.1 | B76: 0.1 | C76: 0.5 | D76: 0.5 | E76: 1.1 | F76: 0.5 | G76: 0.5 | H76: 1.1 | I76: 0.1 | J76: 1.1 | K76: 1.1 | L76: 0.5 | M76: 0.5 | N76: 0.1 | O76: 1.1 | P76: 8.9 | Q76: 2.966666667 | R76: 6 | S76: 7 | T76: 8 | U76: 7 | V76: 8 | W76: 9 | X76: 0 | Y76: 0 | Z76: 14 | AA76: 16 | AB76: 113 | AC76: 124 | AD76: 322 | AE76: 262 | AF76: 380 | AG76: 178 | AH76: 168 | AI76: 36 | AJ76: 24 | AK76: 1 | AL76: 0 | AM76: 0
A77: 0.1 | B77: 0.1 | C77: 0.5 | D77: 0.5 | E77: 1.1 | F77: 0.5 | G77: 0.5 | H77: 1.1 | I77: 1.1 | J77: 0.1 | K77: 1.1 | L77: 0.1 | M77: 0.5 | N77: 0.5 | O77: 1.1 | P77: 8.9 | Q77: 2.966666667 | R77: 6 | S77: 7 | T77: 8 | U77: 7 | V77: 8 | W77: 9 | X77: 0 | Y77: 0 | Z77: 15 | AA77: 16 | AB77: 111 | AC77: 124 | AD77: 322 | AE77: 262 | AF77: 380 | AG77: 178 | AH77: 168 | AI77: 36 | AJ77: 24 | AK77: 1 | AL77: 0 | AM77: 0
A78: 0.1 | B78: 0.1 | C78: 0.5 | D78: 0.5 | E78: 1.1 | F78: 0.5 | G78: 0.5 | H78: 1.1 | I78: 1.1 | J78: 0.1 | K78: 1.1 | L78: 0.5 | M78: 0.1 | N78: 0.5 | O78: 1.1 | P78: 8.9 | Q78: 2.966666667 | R78: 6 | S78: 7 | T78: 8 | U78: 7 | V78: 8 | W78: 9 | X78: 0 | Y78: 0 | Z78: 14 | AA78: 16 | AB78: 111 | AC78: 124 | AD78: 322 | AE78: 262 | AF78: 380 | AG78: 178 | AH78: 168 | AI78: 36 | AJ78: 24 | AK78: 1 | AL78: 0 | AM78: 0
A79: 0.1 | B79: 0.1 | C79: 0.5 | D79: 0.5 | E79: 1.1 | F79: 0.5 | G79: 0.5 | H79: 1.1 | I79: 1.1 | J79: 0.1 | K79: 1.1 | L79: 0.5 | M79: 0.5 | N79: 0.1 | O79: 1.1 | P79: 8.9 | Q79: 2.966666667 | R79: 6 | S79: 7 | T79: 8 | U79: 7 | V79: 8 | W79: 9 | X79: 0 | Y79: 0 | Z79: 13 | AA79: 16 | AB79: 111 | AC79: 124 | AD79: 322 | AE79: 262 | AF79: 380 | AG79: 178 | AH79: 168 | AI79: 36 | AJ79: 24 | AK79: 1 | AL79: 0 | AM79: 0
A80: 0.1 | B80: 0.1 | C80: 0.5 | D80: 0.5 | E80: 1.1 | F80: 0.5 | G80: 0.5 | H80: 1.1 | I80: 1.1 | J80: 1.1 | K80: 0.5 | L80: 0.1 | M80: 0.1 | N80: 0.5 | O80: 1.1 | P80: 8.9 | Q80: 2.966666667 | R80: 7 | S80: 6 | T80: 9 | U80: 6 | V80: 9 | W80: 8 | X80: 0 | Y80: 0 | Z80: 12 | AA80: 30 | AB80: 69 | AC80: 213 | AD80: 186 | AE80: 430 | AF80: 220 | AG80: 285 | AH80: 111 | AI80: 57 | AJ80: 18 | AK80: 3 | AL80: 0 | AM80: 0
A81: 0.1 | B81: 0.1 | C81: 0.5 | D81: 0.5 | E81: 1.1 | F81: 0.5 | G81: 0.5 | H81: 1.1 | I81: 1.1 | J81: 1.1 | K81: 0.5 | L81: 0.1 | M81: 0.5 | N81: 0.1 | O81: 1.1 | P81: 8.9 | Q81: 2.966666667 | R81: 7 | S81: 6 | T81: 9 | U81: 6 | V81: 9 | W81: 8 | X81: 0 | Y81: 0 | Z81: 11 | AA81: 30 | AB81: 69 | AC81: 213 | AD81: 186 | AE81: 430 | AF81: 220 | AG81: 285 | AH81: 111 | AI81: 57 | AJ81: 18 | AK81: 3 | AL81: 0 | AM81: 0
A82: 0.1 | B82: 0.1 | C82: 0.5 | D82: 0.5 | E82: 1.1 | F82: 0.5 | G82: 0.5 | H82: 1.1 | I82: 1.1 | J82: 1.1 | K82: 0.5 | L82: 0.5 | M82: 0.1 | N82: 0.1 | O82: 1.1 | P82: 8.9 | Q82: 2.966666667 | R82: 7 | S82: 6 | T82: 9 | U82: 6 | V82: 9 | W82: 8 | X82: 0 | Y82: 0 | Z82: 10 | AA82: 30 | AB82: 69 | AC82: 213 | AD82: 186 | AE82: 430 | AF82: 220 | AG82: 285 | AH82: 111 | AI82: 57 | AJ82: 18 | AK82: 3 | AL82: 0 | AM82: 0
A83: 0.1 | B83: 0.1 | C83: 0.5 | D83: 0.5 | E83: 1.1 | F83: 0.5 | G83: 0.5 | H83: 1.1 | I83: 1.1 | J83: 1.1 | K83: 1.1 | L83: 0.1 | M83: 0.1 | N83: 0.5 | O83: 0.5 | P83: 8.9 | Q83: 2.966666667 | R83: 7 | S83: 6 | T83: 9 | U83: 6 | V83: 9 | W83: 8 | X83: 0 | Y83: 0 | Z83: 11 | AA83: 30 | AB83: 67 | AC83: 213 | AD83: 186 | AE83: 430 | AF83: 220 | AG83: 285 | AH83: 111 | AI83: 57 | AJ83: 18 | AK83: 3 | AL83: 0 | AM83: 0
A84: 0.1 | B84: 0.1 | C84: 0.5 | D84: 0.5 | E84: 1.1 | F84: 0.5 | G84: 0.5 | H84: 1.1 | I84: 1.1 | J84: 1.1 | K84: 1.1 | L84: 0.1 | M84: 0.5 | N84: 0.1 | O84: 0.5 | P84: 8.9 | Q84: 2.966666667 | R84: 7 | S84: 6 | T84: 9 | U84: 6 | V84: 9 | W84: 8 | X84: 0 | Y84: 0 | Z84: 10 | AA84: 30 | AB84: 67 | AC84: 213 | AD84: 186 | AE84: 430 | AF84: 220 | AG84: 285 | AH84: 111 | AI84: 57 | AJ84: 18 | AK84: 3 | AL84: 0 | AM84: 0
A85: 0.1 | B85: 0.1 | C85: 0.5 | D85: 0.5 | E85: 1.1 | F85: 0.5 | G85: 0.5 | H85: 1.1 | I85: 1.1 | J85: 1.1 | K85: 1.1 | L85: 0.5 | M85: 0.1 | N85: 0.1 | O85: 0.5 | P85: 8.9 | Q85: 2.966666667 | R85: 7 | S85: 6 | T85: 9 | U85: 6 | V85: 9 | W85: 8 | X85: 0 | Y85: 0 | Z85: 9 | AA85: 30 | AB85: 67 | AC85: 213 | AD85: 186 | AE85: 430 | AF85: 220 | AG85: 285 | AH85: 111 | AI85: 57 | AJ85: 18 | AK85: 3 | AL85: 0 | AM85: 0
A86: 0.1 | B86: 0.1 | C86: 0.5 | D86: 0.5 | E86: 1.1 | F86: 0.5 | G86: 1.1 | H86: 0.1 | I86: 0.1 | J86: 1.1 | K86: 1.1 | L86: 0.5 | M86: 0.5 | N86: 0.5 | O86: 1.1 | P86: 8.9 | Q86: 2.966666667 | R86: 5 | S86: 8 | T86: 7 | U86: 8 | V86: 7 | W86: 10 | X86: 0 | Y86: 0 | Z86: 16 | AA86: 14 | AB86: 78 | AC86: 232 | AD86: 143 | AE86: 432 | AF86: 242 | AG86: 280 | AH86: 111 | AI86: 60 | AJ86: 20 | AK86: 0 | AL86: 0 | AM86: 0
A87: 0.1 | B87: 0.1 | C87: 0.5 | D87: 0.5 | E87: 1.1 | F87: 0.5 | G87: 1.1 | H87: 0.1 | I87: 1.1 | J87: 0.1 | K87: 1.1 | L87: 0.5 | M87: 0.5 | N87: 0.5 | O87: 1.1 | P87: 8.9 | Q87: 2.966666667 | R87: 5 | S87: 8 | T87: 7 | U87: 8 | V87: 7 | W87: 10 | X87: 0 | Y87: 0 | Z87: 15 | AA87: 14 | AB87: 78 | AC87: 232 | AD87: 143 | AE87: 432 | AF87: 242 | AG87: 280 | AH87: 111 | AI87: 60 | AJ87: 20 | AK87: 0 | AL87: 0 | AM87: 0
A88: 0.1 | B88: 0.1 | C88: 0.5 | D88: 0.5 | E88: 1.1 | F88: 0.5 | G88: 1.1 | H88: 0.1 | I88: 1.1 | J88: 1.1 | K88: 0.5 | L88: 0.1 | M88: 0.5 | N88: 0.5 | O88: 1.1 | P88: 8.9 | Q88: 2.966666667 | R88: 6 | S88: 7 | T88: 8 | U88: 7 | V88: 8 | W88: 9 | X88: 0 | Y88: 0 | Z88: 16 | AA88: 12 | AB88: 111 | AC88: 121 | AD88: 318 | AE88: 261 | AF88: 380 | AG88: 178 | AH88: 168 | AI88: 36 | AJ88: 24 | AK88: 1 | AL88: 0 | AM88: 0
A89: 0.1 | B89: 0.1 | C89: 0.5 | D89: 0.5 | E89: 1.1 | F89: 0.5 | G89: 1.1 | H89: 0.1 | I89: 1.1 | J89: 1.1 | K89: 0.5 | L89: 0.5 | M89: 0.1 | N89: 0.5 | O89: 1.1 | P89: 8.9 | Q89: 2.966666667 | R89: 6 | S89: 7 | T89: 8 | U89: 7 | V89: 8 | W89: 9 | X89: 0 | Y89: 0 | Z89: 15 | AA89: 12 | AB89: 111 | AC89: 121 | AD89: 318 | AE89: 261 | AF89: 380 | AG89: 178 | AH89: 168 | AI89: 36 | AJ89: 24 | AK89: 1 | AL89: 0 | AM89: 0
A90: 0.1 | B90: 0.1 | C90: 0.5 | D90: 0.5 | E90: 1.1 | F90: 0.5 | G90: 1.1 | H90: 0.1 | I90: 1.1 | J90: 1.1 | K90: 0.5 | L90: 0.5 | M90: 0.5 | N90: 0.1 | O90: 1.1 | P90: 8.9 | Q90: 2.966666667 | R90: 6 | S90: 7 | T90: 8 | U90: 7 | V90: 8 | W90: 9 | X90: 0 | Y90: 0 | Z90: 14 | AA90: 12 | AB90: 111 | AC90: 121 | AD90: 318 | AE90: 261 | AF90: 380 | AG90: 178 | AH90: 168 | AI90: 36 | AJ90: 24 | AK90: 1 | AL90: 0 | AM90: 0
A91: 0.1 | B91: 0.1 | C91: 0.5 | D91: 0.5 | E91: 1.1 | F91: 0.5 | G91: 1.1 | H91: 0.1 | I91: 1.1 | J91: 1.1 | K91: 1.1 | L91: 0.1 | M91: 0.5 | N91: 0.5 | O91: 0.5 | P91: 8.9 | Q91: 2.966666667 | R91: 6 | S91: 7 | T91: 8 | U91: 7 | V91: 8 | W91: 9 | X91: 0 | Y91: 0 | Z91: 15 | AA91: 12 | AB91: 109 | AC91: 121 | AD91: 318 | AE91: 261 | AF91: 380 | AG91: 178 | AH91: 168 | AI91: 36 | AJ91: 24 | AK91: 1 | AL91: 0 | AM91: 0
A92: 0.1 | B92: 0.1 | C92: 0.5 | D92: 0.5 | E92: 1.1 | F92: 0.5 | G92: 1.1 | H92: 0.1 | I92: 1.1 | J92: 1.1 | K92: 1.1 | L92: 0.5 | M92: 0.1 | N92: 0.5 | O92: 0.5 | P92: 8.9 | Q92: 2.966666667 | R92: 6 | S92: 7 | T92: 8 | U92: 7 | V92: 8 | W92: 9 | X92: 0 | Y92: 0 | Z92: 14 | AA92: 12 | AB92: 109 | AC92: 121 | AD92: 318 | AE92: 261 | AF92: 380 | AG92: 178 | AH92: 168 | AI92: 36 | AJ92: 24 | AK92: 1 | AL92: 0 | AM92: 0
A93: 0.1 | B93: 0.1 | C93: 0.5 | D93: 0.5 | E93: 1.1 | F93: 0.5 | G93: 1.1 | H93: 0.1 | I93: 1.1 | J93: 1.1 | K93: 1.1 | L93: 0.5 | M93: 0.5 | N93: 0.1 | O93: 0.5 | P93: 8.9 | Q93: 2.966666667 | R93: 6 | S93: 7 | T93: 8 | U93: 7 | V93: 8 | W93: 9 | X93: 0 | Y93: 0 | Z93: 13 | AA93: 12 | AB93: 109 | AC93: 121 | AD93: 318 | AE93: 261 | AF93: 380 | AG93: 178 | AH93: 168 | AI93: 36 | AJ93: 24 | AK93: 1 | AL93: 0 | AM93: 0
A94: 0.1 | B94: 0.1 | C94: 0.5 | D94: 0.5 | E94: 1.1 | F94: 0.5 | G94: 1.1 | H94: 1.1 | I94: 0.1 | J94: 0.1 | K94: 1.1 | L94: 0.5 | M94: 0.5 | N94: 0.5 | O94: 1.1 | P94: 8.9 | Q94: 2.966666667 | R94: 5 | S94: 8 | T94: 7 | U94: 8 | V94: 7 | W94: 10 | X94: 0 | Y94: 0 | Z94: 14 | AA94: 14 | AB94: 78 | AC94: 226 | AD94: 143 | AE94: 432 | AF94: 242 | AG94: 280 | AH94: 111 | AI94: 60 | AJ94: 20 | AK94: 0 | AL94: 0 | AM94: 0
A95: 0.1 | B95: 0.1 | C95: 0.5 | D95: 0.5 | E95: 1.1 | F95: 0.5 | G95: 1.1 | H95: 1.1 | I95: 0.1 | J95: 1.1 | K95: 0.5 | L95: 0.1 | M95: 0.5 | N95: 0.5 | O95: 1.1 | P95: 8.9 | Q95: 2.966666667 | R95: 6 | S95: 7 | T95: 8 | U95: 7 | V95: 8 | W95: 9 | X95: 0 | Y95: 0 | Z95: 15 | AA95: 12 | AB95: 108 | AC95: 120 | AD95: 316 | AE95: 261 | AF95: 380 | AG95: 178 | AH95: 168 | AI95: 36 | AJ95: 24 | AK95: 1 | AL95: 0 | AM95: 0
A96: 0.1 | B96: 0.1 | C96: 0.5 | D96: 0.5 | E96: 1.1 | F96: 0.5 | G96: 1.1 | H96: 1.1 | I96: 0.1 | J96: 1.1 | K96: 0.5 | L96: 0.5 | M96: 0.1 | N96: 0.5 | O96: 1.1 | P96: 8.9 | Q96: 2.966666667 | R96: 6 | S96: 7 | T96: 8 | U96: 7 | V96: 8 | W96: 9 | X96: 0 | Y96: 0 | Z96: 14 | AA96: 12 | AB96: 108 | AC96: 120 | AD96: 316 | AE96: 261 | AF96: 380 | AG96: 178 | AH96: 168 | AI96: 36 | AJ96: 24 | AK96: 1 | AL96: 0 | AM96: 0
A97: 0.1 | B97: 0.1 | C97: 0.5 | D97: 0.5 | E97: 1.1 | F97: 0.5 | G97: 1.1 | H97: 1.1 | I97: 0.1 | J97: 1.1 | K97: 0.5 | L97: 0.5 | M97: 0.5 | N97: 0.1 | O97: 1.1 | P97: 8.9 | Q97: 2.966666667 | R97: 6 | S97: 7 | T97: 8 | U97: 7 | V97: 8 | W97: 9 | X97: 0 | Y97: 0 | Z97: 13 | AA97: 12 | AB97: 108 | AC97: 120 | AD97: 316 | AE97: 261 | AF97: 380 | AG97: 178 | AH97: 168 | AI97: 36 | AJ97: 24 | AK97: 1 | AL97: 0 | AM97: 0
A98: 0.1 | B98: 0.1 | C98: 0.5 | D98: 0.5 | E98: 1.1 | F98: 0.5 | G98: 1.1 | H98: 1.1 | I98: 0.1 | J98: 1.1 | K98: 1.1 | L98: 0.1 | M98: 0.5 | N98: 0.5 | O98: 0.5 | P98: 8.9 | Q98: 2.966666667 | R98: 6 | S98: 7 | T98: 8 | U98: 7 | V98: 8 | W98: 9 | X98: 0 | Y98: 0 | Z98: 14 | AA98: 12 | AB98: 106 | AC98: 120 | AD98: 316 | AE98: 261 | AF98: 380 | AG98: 178 | AH98: 168 | AI98: 36 | AJ98: 24 | AK98: 1 | AL98: 0 | AM98: 0
A99: 0.1 | B99: 0.1 | C99: 0.5 | D99: 0.5 | E99: 1.1 | F99: 0.5 | G99: 1.1 | H99: 1.1 | I99: 0.1 | J99: 1.1 | K99: 1.1 | L99: 0.5 | M99: 0.1 | N99: 0.5 | O99: 0.5 | P99: 8.9 | Q99: 2.966666667 | R99: 6 | S99: 7 | T99: 8 | U99: 7 | V99: 8 | W99: 9 | X99: 0 | Y99: 0 | Z99: 13 | AA99: 12 | AB99: 106 | AC99: 120 | AD99: 316 | AE99: 261 | AF99: 380 | AG99: 178 | AH99: 168 | AI99: 36 | AJ99: 24 | AK99: 1 | AL99: 0 | AM99: 0
A100: 0.1 | B100: 0.1 | C100: 0.5 | D100: 0.5 | E100: 1.1 | F100: 0.5 | G100: 1.1 | H100: 1.1 | I100: 0.1 | J100: 1.1 | K100: 1.1 | L100: 0.5 | M100: 0.5 | N100: 0.1 | O100: 0.5 | P100: 8.9 | Q100: 2.966666667 | R100: 6 | S100: 7 | T100: 8 | U100: 7 | V100: 8 | W100: 9 | X100: 0 | Y100: 0 | Z100: 12 | AA100: 12 | AB100: 106 | AC100: 120 | AD100: 316 | AE100: 261 | AF100: 380 | AG100: 178 | AH100: 168 | AI100: 36 | AJ100: 24 | AK100: 1 | AL100: 0 | AM100: 0
A101: 0.1 | B101: 0.1 | C101: 0.5 | D101: 0.5 | E101: 1.1 | F101: 0.5 | G101: 1.1 | H101: 1.1 | I101: 1.1 | J101: 0.1 | K101: 0.5 | L101: 0.1 | M101: 0.5 | N101: 0.5 | O101: 1.1 | P101: 8.9 | Q101: 2.966666667 | R101: 6 | S101: 7 | T101: 8 | U101: 7 | V101: 8 | W101: 9 | X101: 0 | Y101: 0 | Z101: 14 | AA101: 12 | AB101: 105 | AC101: 120 | AD101: 314 | AE101: 261 | AF101: 380 | AG101: 178 | AH101: 168 | AI101: 36 | AJ101: 24 | AK101: 1 | AL101: 0 | AM101: 0
A102: 0.1 | B102: 0.1 | C102: 0.5 | D102: 0.5 | E102: 1.1 | F102: 0.5 | G102: 1.1 | H102: 1.1 | I102: 1.1 | J102: 0.1 | K102: 0.5 | L102: 0.5 | M102: 0.1 | N102: 0.5 | O102: 1.1 | P102: 8.9 | Q102: 2.966666667 | R102: 6 | S102: 7 | T102: 8 | U102: 7 | V102: 8 | W102: 9 | X102: 0 | Y102: 0 | Z102: 13 | AA102: 12 | AB102: 105 | AC102: 120 | AD102: 314 | AE102: 261 | AF102: 380 | AG102: 178 | AH102: 168 | AI102: 36 | AJ102: 24 | AK102: 1 | AL102: 0 | AM102: 0
A103: 0.1 | B103: 0.1 | C103: 0.5 | D103: 0.5 | E103: 1.1 | F103: 0.5 | G103: 1.1 | H103: 1.1 | I103: 1.1 | J103: 0.1 | K103: 0.5 | L103: 0.5 | M103: 0.5 | N103: 0.1 | O103: 1.1 | P103: 8.9 | Q103: 2.966666667 | R103: 6 | S103: 7 | T103: 8 | U103: 7 | V103: 8 | W103: 9 | X103: 0 | Y103: 0 | Z103: 12 | AA103: 12 | AB103: 105 | AC103: 120 | AD103: 314 | AE103: 261 | AF103: 380 | AG103: 178 | AH103: 168 | AI103: 36 | AJ103: 24 | AK103: 1 | AL103: 0 | AM103: 0
A104: 0.1 | B104: 0.1 | C104: 0.5 | D104: 0.5 | E104: 1.1 | F104: 0.5 | G104: 1.1 | H104: 1.1 | I104: 1.1 | J104: 0.1 | K104: 1.1 | L104: 0.1 | M104: 0.5 | N104: 0.5 | O104: 0.5 | P104: 8.9 | Q104: 2.966666667 | R104: 6 | S104: 7 | T104: 8 | U104: 7 | V104: 8 | W104: 9 | X104: 0 | Y104: 0 | Z104: 13 | AA104: 12 | AB104: 103 | AC104: 120 | AD104: 314 | AE104: 261 | AF104: 380 | AG104: 178 | AH104: 168 | AI104: 36 | AJ104: 24 | AK104: 1 | AL104: 0 | AM104: 0
A105: 0.1 | B105: 0.1 | C105: 0.5 | D105: 0.5 | E105: 1.1 | F105: 0.5 | G105: 1.1 | H105: 1.1 | I105: 1.1 | J105: 0.1 | K105: 1.1 | L105: 0.5 | M105: 0.1 | N105: 0.5 | O105: 0.5 | P105: 8.9 | Q105: 2.966666667 | R105: 6 | S105: 7 | T105: 8 | U105: 7 | V105: 8 | W105: 9 | X105: 0 | Y105: 0 | Z105: 12 | AA105: 12 | AB105: 103 | AC105: 120 | AD105: 314 | AE105: 261 | AF105: 380 | AG105: 178 | AH105: 168 | AI105: 36 | AJ105: 24 | AK105: 1 | AL105: 0 | AM105: 0
A106: 0.1 | B106: 0.1 | C106: 0.5 | D106: 0.5 | E106: 1.1 | F106: 0.5 | G106: 1.1 | H106: 1.1 | I106: 1.1 | J106: 0.1 | K106: 1.1 | L106: 0.5 | M106: 0.5 | N106: 0.1 | O106: 0.5 | P106: 8.9 | Q106: 2.966666667 | R106: 6 | S106: 7 | T106: 8 | U106: 7 | V106: 8 | W106: 9 | X106: 0 | Y106: 0 | Z106: 11 | AA106: 12 | AB106: 103 | AC106: 120 | AD106: 314 | AE106: 261 | AF106: 380 | AG106: 178 | AH106: 168 | AI106: 36 | AJ106: 24 | AK106: 1 | AL106: 0 | AM106: 0
A107: 0.1 | B107: 0.1 | C107: 0.5 | D107: 0.5 | E107: 1.1 | F107: 0.5 | G107: 1.1 | H107: 1.1 | I107: 1.1 | J107: 1.1 | K107: 0.5 | L107: 0.1 | M107: 0.1 | N107: 0.5 | O107: 0.5 | P107: 8.9 | Q107: 2.966666667 | R107: 7 | S107: 6 | T107: 9 | U107: 6 | V107: 9 | W107: 8 | X107: 0 | Y107: 0 | Z107: 10 | AA107: 24 | AB107: 65 | AC107: 204 | AD107: 183 | AE107: 427 | AF107: 220 | AG107: 285 | AH107: 111 | AI107: 57 | AJ107: 18 | AK107: 3 | AL107: 0 | AM107: 0
A108: 0.1 | B108: 0.1 | C108: 0.5 | D108: 0.5 | E108: 1.1 | F108: 0.5 | G108: 1.1 | H108: 1.1 | I108: 1.1 | J108: 1.1 | K108: 0.5 | L108: 0.1 | M108: 0.5 | N108: 0.1 | O108: 0.5 | P108: 8.9 | Q108: 2.966666667 | R108: 7 | S108: 6 | T108: 9 | U108: 6 | V108: 9 | W108: 8 | X108: 0 | Y108: 0 | Z108: 9 | AA108: 24 | AB108: 65 | AC108: 204 | AD108: 183 | AE108: 427 | AF108: 220 | AG108: 285 | AH108: 111 | AI108: 57 | AJ108: 18 | AK108: 3 | AL108: 0 | AM108: 0
A109: 0.1 | B109: 0.1 | C109: 0.5 | D109: 0.5 | E109: 1.1 | F109: 0.5 | G109: 1.1 | H109: 1.1 | I109: 1.1 | J109: 1.1 | K109: 0.5 | L109: 0.5 | M109: 0.1 | N109: 0.1 | O109: 0.5 | P109: 8.9 | Q109: 2.966666667 | R109: 7 | S109: 6 | T109: 9 | U109: 6 | V109: 9 | W109: 8 | X109: 0 | Y109: 0 | Z109: 8 | AA109: 24 | AB109: 65 | AC109: 204 | AD109: 183 | AE109: 427 | AF109: 220 | AG109: 285 | AH109: 111 | AI109: 57 | AJ109: 18 | AK109: 3 | AL109: 0 | AM109: 0
A110: 0.1 | B110: 0.1 | C110: 1.1 | D110: 0.1 | E110: 0.5 | F110: 0.1 | G110: 0.5 | H110: 1.1 | I110: 1.1 | J110: 1.1 | K110: 0.5 | L110: 0.5 | M110: 0.5 | N110: 0.5 | O110: 1.1 | P110: 8.9 | Q110: 2.966666667 | R110: 7 | S110: 6 | T110: 9 | U110: 6 | V110: 9 | W110: 8 | X110: 0 | Y110: 0 | Z110: 15 | AA110: 36 | AB110: 72 | AC110: 216 | AD110: 177 | AE110: 412 | AF110: 211 | AG110: 276 | AH110: 111 | AI110: 57 | AJ110: 18 | AK110: 3 | AL110: 0 | AM110: 0
A111: 0.1 | B111: 0.1 | C111: 1.1 | D111: 0.1 | E111: 0.5 | F111: 0.1 | G111: 0.5 | H111: 1.1 | I111: 1.1 | J111: 1.1 | K111: 1.1 | L111: 0.5 | M111: 0.5 | N111: 0.5 | O111: 0.5 | P111: =SUM(A111:O111) -> 8.9 | Q111: =P111/3 -> 2.966666667 | R111: 7 | S111: 6 | T111: 9 | U111: 6 | V111: 9 | W111: 8 | X111: 0 | Y111: 0 | Z111: 14 | AA111: 36 | AB111: 72 | AC111: 216 | AD111: 177 | AE111: 412 | AF111: 211 | AG111: 276 | AH111: 111 | AI111: 57 | AJ111: 18 | AK111: 3 | AL111: 0 | AM111: 0
A112: 0.1 | B112: 0.1 | C112: 1.1 | D112: 0.1 | E112: 0.5 | F112: 0.1 | G112: 1.1 | H112: 1.1 | I112: 1.1 | J112: 1.1 | K112: 0.5 | L112: 0.5 | M112: 0.5 | N112: 0.5 | O112: 0.5 | P112: 8.9 | Q112: 2.966666667 | R112: 7 | S112: 6 | T112: 9 | U112: 6 | V112: 9 | W112: 8 | X112: 0 | Y112: 0 | Z112: 13 | AA112: 36 | AB112: 72 | AC112: 216 | AD112: 177 | AE112: 412 | AF112: 211 | AG112: 276 | AH112: 111 | AI112: 57 | AJ112: 18 | AK112: 3 | AL112: 0 | AM112: 0
A113: 0.1 | B113: 0.1 | C113: 1.1 | D113: 0.1 | E113: 0.5 | F113: 0.5 | G113: 0.5 | H113: 0.1 | I113: 1.1 | J113: 1.1 | K113: 1.1 | L113: 0.5 | M113: 0.5 | N113: 0.5 | O113: 1.1 | P113: 8.9 | Q113: 2.966666667 | R113: 6 | S113: 7 | T113: 8 | U113: 7 | V113: 8 | W113: 9 | X113: 0 | Y113: 0 | Z113: 18 | AA113: 18 | AB113: 115 | AC113: 125 | AD113: 310 | AE113: 250 | AF113: 364 | AG113: 172 | AH113: 168 | AI113: 36 | AJ113: 24 | AK113: 1 | AL113: 0 | AM113: 0
A114: 0.1 | B114: 0.1 | C114: 1.1 | D114: 0.1 | E114: 0.5 | F114: 0.5 | G114: 0.5 | H114: 1.1 | I114: 0.1 | J114: 1.1 | K114: 1.1 | L114: 0.5 | M114: 0.5 | N114: 0.5 | O114: 1.1 | P114: 8.9 | Q114: 2.966666667 | R114: 6 | S114: 7 | T114: 8 | U114: 7 | V114: 8 | W114: 9 | X114: 0 | Y114: 0 | Z114: 17 | AA114: 18 | AB114: 115 | AC114: 125 | AD114: 310 | AE114: 250 | AF114: 364 | AG114: 172 | AH114: 168 | AI114: 36 | AJ114: 24 | AK114: 1 | AL114: 0 | AM114: 0
A115: 0.1 | B115: 0.1 | C115: 1.1 | D115: 0.1 | E115: 0.5 | F115: 0.5 | G115: 0.5 | H115: 1.1 | I115: 1.1 | J115: 0.1 | K115: 1.1 | L115: 0.5 | M115: 0.5 | N115: 0.5 | O115: 1.1 | P115: 8.9 | Q115: 2.966666667 | R115: 6 | S115: 7 | T115: 8 | U115: 7 | V115: 8 | W115: 9 | X115: 0 | Y115: 0 | Z115: 16 | AA115: 18 | AB115: 115 | AC115: 125 | AD115: 310 | AE115: 250 | AF115: 364 | AG115: 172 | AH115: 168 | AI115: 36 | AJ115: 24 | AK115: 1 | AL115: 0 | AM115: 0
A116: 0.1 | B116: 0.1 | C116: 1.1 | D116: 0.1 | E116: 0.5 | F116: 0.5 | G116: 0.5 | H116: 1.1 | I116: 1.1 | J116: 1.1 | K116: 0.5 | L116: 0.1 | M116: 0.5 | N116: 0.5 | O116: 1.1 | P116: 8.9 | Q116: 2.966666667 | R116: 7 | S116: 6 | T116: 9 | U116: 6 | V116: 9 | W116: 8 | X116: 0 | Y116: 0 | Z116: 14 | AA116: 33 | AB116: 70 | AC116: 216 | AD116: 177 | AE116: 412 | AF116: 211 | AG116: 276 | AH116: 111 | AI116: 57 | AJ116: 18 | AK116: 3 | AL116: 0 | AM116: 0
A117: 0.1 | B117: 0.1 | C117: 1.1 | D117: 0.1 | E117: 0.5 | F117: 0.5 | G117: 0.5 | H117: 1.1 | I117: 1.1 | J117: 1.1 | K117: 0.5 | L117: 0.5 | M117: 0.1 | N117: 0.5 | O117: 1.1 | P117: 8.9 | Q117: 2.966666667 | R117: 7 | S117: 6 | T117: 9 | U117: 6 | V117: 9 | W117: 8 | X117: 0 | Y117: 0 | Z117: 13 | AA117: 33 | AB117: 70 | AC117: 216 | AD117: 177 | AE117: 412 | AF117: 211 | AG117: 276 | AH117: 111 | AI117: 57 | AJ117: 18 | AK117: 3 | AL117: 0 | AM117: 0
A118: 0.1 | B118: 0.1 | C118: 1.1 | D118: 0.1 | E118: 0.5 | F118: 0.5 | G118: 0.5 | H118: 1.1 | I118: 1.1 | J118: 1.1 | K118: 0.5 | L118: 0.5 | M118: 0.5 | N118: 0.1 | O118: 1.1 | P118: 8.9 | Q118: 2.966666667 | R118: 7 | S118: 6 | T118: 9 | U118: 6 | V118: 9 | W118: 8 | X118: 0 | Y118: 0 | Z118: 12 | AA118: 33 | AB118: 70 | AC118: 216 | AD118: 177 | AE118: 412 | AF118: 211 | AG118: 276 | AH118: 111 | AI118: 57 | AJ118: 18 | AK118: 3 | AL118: 0 | AM118: 0
A119: 0.1 | B119: 0.1 | C119: 1.1 | D119: 0.1 | E119: 0.5 | F119: 0.5 | G119: 0.5 | H119: 1.1 | I119: 1.1 | J119: 1.1 | K119: 1.1 | L119: 0.1 | M119: 0.5 | N119: 0.5 | O119: 0.5 | P119: 8.9 | Q119: 2.966666667 | R119: 7 | S119: 6 | T119: 9 | U119: 6 | V119: 9 | W119: 8 | X119: 0 | Y119: 0 | Z119: 13 | AA119: 33 | AB119: 68 | AC119: 216 | AD119: 177 | AE119: 412 | AF119: 211 | AG119: 276 | AH119: 111 | AI119: 57 | AJ119: 18 | AK119: 3 | AL119: 0 | AM119: 0
A120: 0.1 | B120: 0.1 | C120: 1.1 | D120: 0.1 | E120: 0.5 | F120: 0.5 | G120: 0.5 | H120: 1.1 | I120: 1.1 | J120: 1.1 | K120: 1.1 | L120: 0.5 | M120: 0.1 | N120: 0.5 | O120: 0.5 | P120: 8.9 | Q120: 2.966666667 | R120: 7 | S120: 6 | T120: 9 | U120: 6 | V120: 9 | W120: 8 | X120: 0 | Y120: 0 | Z120: 12 | AA120: 33 | AB120: 68 | AC120: 216 | AD120: 177 | AE120: 412 | AF120: 211 | AG120: 276 | AH120: 111 | AI120: 57 | AJ120: 18 | AK120: 3 | AL120: 0 | AM120: 0
A121: 0.1 | B121: 0.1 | C121: 1.1 | D121: 0.1 | E121: 0.5 | F121: 0.5 | G121: 0.5 | H121: 1.1 | I121: 1.1 | J121: 1.1 | K121: 1.1 | L121: 0.5 | M121: 0.5 | N121: 0.1 | O121: 0.5 | P121: 8.9 | Q121: 2.966666667 | R121: 7 | S121: 6 | T121: 9 | U121: 6 | V121: 9 | W121: 8 | X121: 0 | Y121: 0 | Z121: 11 | AA121: 33 | AB121: 68 | AC121: 216 | AD121: 177 | AE121: 412 | AF121: 211 | AG121: 276 | AH121: 111 | AI121: 57 | AJ121: 18 | AK121: 3 | AL121: 0 | AM121: 0
A122: 0.1 | B122: 0.1 | C122: 1.1 | D122: 0.1 | E122: 0.5 | F122: 0.5 | G122: 1.1 | H122: 0.1 | I122: 1.1 | J122: 1.1 | K122: 0.5 | L122: 0.5 | M122: 0.5 | N122: 0.5 | O122: 1.1 | P122: 8.9 | Q122: 2.966666667 | R122: 6 | S122: 7 | T122: 8 | U122: 7 | V122: 8 | W122: 9 | X122: 0 | Y122: 0 | Z122: 17 | AA122: 15 | AB122: 113 | AC122: 122 | AD122: 310 | AE122: 250 | AF122: 364 | AG122: 172 | AH122: 168 | AI122: 36 | AJ122: 24 | AK122: 1 | AL122: 0 | AM122: 0
A123: 0.1 | B123: 0.1 | C123: 1.1 | D123: 0.1 | E123: 0.5 | F123: 0.5 | G123: 1.1 | H123: 0.1 | I123: 1.1 | J123: 1.1 | K123: 1.1 | L123: 0.5 | M123: 0.5 | N123: 0.5 | O123: 0.5 | P123: 8.9 | Q123: 2.966666667 | R123: 6 | S123: 7 | T123: 8 | U123: 7 | V123: 8 | W123: 9 | X123: 0 | Y123: 0 | Z123: 16 | AA123: 15 | AB123: 113 | AC123: 122 | AD123: 310 | AE123: 250 | AF123: 364 | AG123: 172 | AH123: 168 | AI123: 36 | AJ123: 24 | AK123: 1 | AL123: 0 | AM123: 0
A124: 0.1 | B124: 0.1 | C124: 1.1 | D124: 0.1 | E124: 0.5 | F124: 0.5 | G124: 1.1 | H124: 1.1 | I124: 0.1 | J124: 1.1 | K124: 0.5 | L124: 0.5 | M124: 0.5 | N124: 0.5 | O124: 1.1 | P124: 8.9 | Q124: 2.966666667 | R124: 6 | S124: 7 | T124: 8 | U124: 7 | V124: 8 | W124: 9 | X124: 0 | Y124: 0 | Z124: 16 | AA124: 15 | AB124: 112 | AC124: 122 | AD124: 310 | AE124: 250 | AF124: 364 | AG124: 172 | AH124: 168 | AI124: 36 | AJ124: 24 | AK124: 1 | AL124: 0 | AM124: 0
A125: 0.1 | B125: 0.1 | C125: 1.1 | D125: 0.1 | E125: 0.5 | F125: 0.5 | G125: 1.1 | H125: 1.1 | I125: 0.1 | J125: 1.1 | K125: 1.1 | L125: 0.5 | M125: 0.5 | N125: 0.5 | O125: 0.5 | P125: 8.9 | Q125: 2.966666667 | R125: 6 | S125: 7 | T125: 8 | U125: 7 | V125: 8 | W125: 9 | X125: 0 | Y125: 0 | Z125: 15 | AA125: 15 | AB125: 112 | AC125: 122 | AD125: 310 | AE125: 250 | AF125: 364 | AG125: 172 | AH125: 168 | AI125: 36 | AJ125: 24 | AK125: 1 | AL125: 0 | AM125: 0
A126: 0.1 | B126: 0.1 | C126: 1.1 | D126: 0.1 | E126: 0.5 | F126: 0.5 | G126: 1.1 | H126: 1.1 | I126: 1.1 | J126: 0.1 | K126: 0.5 | L126: 0.5 | M126: 0.5 | N126: 0.5 | O126: 1.1 | P126: 8.9 | Q126: 2.966666667 | R126: 6 | S126: 7 | T126: 8 | U126: 7 | V126: 8 | W126: 9 | X126: 0 | Y126: 0 | Z126: 15 | AA126: 15 | AB126: 111 | AC126: 122 | AD126: 310 | AE126: 250 | AF126: 364 | AG126: 172 | AH126: 168 | AI126: 36 | AJ126: 24 | AK126: 1 | AL126: 0 | AM126: 0
A127: 0.1 | B127: 0.1 | C127: 1.1 | D127: 0.1 | E127: 0.5 | F127: 0.5 | G127: 1.1 | H127: 1.1 | I127: 1.1 | J127: 0.1 | K127: 1.1 | L127: 0.5 | M127: 0.5 | N127: 0.5 | O127: 0.5 | P127: 8.9 | Q127: 2.966666667 | R127: 6 | S127: 7 | T127: 8 | U127: 7 | V127: 8 | W127: 9 | X127: 0 | Y127: 0 | Z127: 14 | AA127: 15 | AB127: 111 | AC127: 122 | AD127: 310 | AE127: 250 | AF127: 364 | AG127: 172 | AH127: 168 | AI127: 36 | AJ127: 24 | AK127: 1 | AL127: 0 | AM127: 0
A128: 0.1 | B128: 0.1 | C128: 1.1 | D128: 0.1 | E128: 0.5 | F128: 0.5 | G128: 1.1 | H128: 1.1 | I128: 1.1 | J128: 1.1 | K128: 0.5 | L128: 0.1 | M128: 0.5 | N128: 0.5 | O128: 0.5 | P128: 8.9 | Q128: 2.966666667 | R128: 7 | S128: 6 | T128: 9 | U128: 6 | V128: 9 | W128: 8 | X128: 0 | Y128: 0 | Z128: 12 | AA128: 30 | AB128: 66 | AC128: 213 | AD128: 177 | AE128: 412 | AF128: 211 | AG128: 276 | AH128: 111 | AI128: 57 | AJ128: 18 | AK128: 3 | AL128: 0 | AM128: 0
A129: 0.1 | B129: 0.1 | C129: 1.1 | D129: 0.1 | E129: 0.5 | F129: 0.5 | G129: 1.1 | H129: 1.1 | I129: 1.1 | J129: 1.1 | K129: 0.5 | L129: 0.5 | M129: 0.1 | N129: 0.5 | O129: 0.5 | P129: 8.9 | Q129: 2.966666667 | R129: 7 | S129: 6 | T129: 9 | U129: 6 | V129: 9 | W129: 8 | X129: 0 | Y129: 0 | Z129: 11 | AA129: 30 | AB129: 66 | AC129: 213 | AD129: 177 | AE129: 412 | AF129: 211 | AG129: 276 | AH129: 111 | AI129: 57 | AJ129: 18 | AK129: 3 | AL129: 0 | AM129: 0
A130: 0.1 | B130: 0.1 | C130: 1.1 | D130: 0.1 | E130: 0.5 | F130: 0.5 | G130: 1.1 | H130: 1.1 | I130: 1.1 | J130: 1.1 | K130: 0.5 | L130: 0.5 | M130: 0.5 | N130: 0.1 | O130: 0.5 | P130: 8.9 | Q130: 2.966666667 | R130: 7 | S130: 6 | T130: 9 | U130: 6 | V130: 9 | W130: 8 | X130: 0 | Y130: 0 | Z130: 10 | AA130: 30 | AB130: 66 | AC130: 213 | AD130: 177 | AE130: 412 | AF130: 211 | AG130: 276 | AH130: 111 | AI130: 57 | AJ130: 18 | AK130: 3 | AL130: 0 | AM130: 0
A131: 0.1 | B131: 0.1 | C131: 1.1 | D131: 0.1 | E131: 1.1 | F131: 0.1 | G131: 0.5 | H131: 1.1 | I131: 1.1 | J131: 1.1 | K131: 0.5 | L131: 0.5 | M131: 0.5 | N131: 0.5 | O131: 0.5 | P131: 8.9 | Q131: 2.966666667 | R131: 7 | S131: 6 | T131: 9 | U131: 6 | V131: 9 | W131: 8 | X131: 0 | Y131: 0 | Z131: 12 | AA131: 36 | AB131: 63 | AC131: 207 | AD131: 177 | AE131: 412 | AF131: 211 | AG131: 276 | AH131: 111 | AI131: 57 | AJ131: 18 | AK131: 3 | AL131: 0 | AM131: 0
A132: 0.1 | B132: 0.1 | C132: 1.1 | D132: 0.1 | E132: 1.1 | F132: 0.5 | G132: 0.5 | H132: 0.1 | I132: 1.1 | J132: 1.1 | K132: 0.5 | L132: 0.5 | M132: 0.5 | N132: 0.5 | O132: 1.1 | P132: 8.9 | Q132: 2.966666667 | R132: 6 | S132: 7 | T132: 8 | U132: 7 | V132: 8 | W132: 9 | X132: 0 | Y132: 0 | Z132: 16 | AA132: 15 | AB132: 110 | AC132: 118 | AD132: 308 | AE132: 250 | AF132: 364 | AG132: 172 | AH132: 168 | AI132: 36 | AJ132: 24 | AK132: 1 | AL132: 0 | AM132: 0
A133: 0.1 | B133: 0.1 | C133: 1.1 | D133: 0.1 | E133: 1.1 | F133: 0.5 | G133: 0.5 | H133: 0.1 | I133: 1.1 | J133: 1.1 | K133: 1.1 | L133: 0.5 | M133: 0.5 | N133: 0.5 | O133: 0.5 | P133: 8.9 | Q133: 2.966666667 | R133: 6 | S133: 7 | T133: 8 | U133: 7 | V133: 8 | W133: 9 | X133: 0 | Y133: 0 | Z133: 15 | AA133: 15 | AB133: 110 | AC133: 118 | AD133: 308 | AE133: 250 | AF133: 364 | AG133: 172 | AH133: 168 | AI133: 36 | AJ133: 24 | AK133: 1 | AL133: 0 | AM133: 0
A134: 0.1 | B134: 0.1 | C134: 1.1 | D134: 0.1 | E134: 1.1 | F134: 0.5 | G134: 0.5 | H134: 1.1 | I134: 0.1 | J134: 1.1 | K134: 0.5 | L134: 0.5 | M134: 0.5 | N134: 0.5 | O134: 1.1 | P134: 8.9 | Q134: 2.966666667 | R134: 6 | S134: 7 | T134: 8 | U134: 7 | V134: 8 | W134: 9 | X134: 0 | Y134: 0 | Z134: 15 | AA134: 15 | AB134: 109 | AC134: 118 | AD134: 308 | AE134: 250 | AF134: 364 | AG134: 172 | AH134: 168 | AI134: 36 | AJ134: 24 | AK134: 1 | AL134: 0 | AM134: 0
A135: 0.1 | B135: 0.1 | C135: 1.1 | D135: 0.1 | E135: 1.1 | F135: 0.5 | G135: 0.5 | H135: 1.1 | I135: 0.1 | J135: 1.1 | K135: 1.1 | L135: 0.5 | M135: 0.5 | N135: 0.5 | O135: 0.5 | P135: 8.9 | Q135: 2.966666667 | R135: 6 | S135: 7 | T135: 8 | U135: 7 | V135: 8 | W135: 9 | X135: 0 | Y135: 0 | Z135: 14 | AA135: 15 | AB135: 109 | AC135: 118 | AD135: 308 | AE135: 250 | AF135: 364 | AG135: 172 | AH135: 168 | AI135: 36 | AJ135: 24 | AK135: 1 | AL135: 0 | AM135: 0
A136: 0.1 | B136: 0.1 | C136: 1.1 | D136: 0.1 | E136: 1.1 | F136: 0.5 | G136: 0.5 | H136: 1.1 | I136: 1.1 | J136: 0.1 | K136: 0.5 | L136: 0.5 | M136: 0.5 | N136: 0.5 | O136: 1.1 | P136: 8.9 | Q136: 2.966666667 | R136: 6 | S136: 7 | T136: 8 | U136: 7 | V136: 8 | W136: 9 | X136: 0 | Y136: 0 | Z136: 14 | AA136: 15 | AB136: 108 | AC136: 118 | AD136: 308 | AE136: 250 | AF136: 364 | AG136: 172 | AH136: 168 | AI136: 36 | AJ136: 24 | AK136: 1 | AL136: 0 | AM136: 0
A137: 0.1 | B137: 0.1 | C137: 1.1 | D137: 0.1 | E137: 1.1 | F137: 0.5 | G137: 0.5 | H137: 1.1 | I137: 1.1 | J137: 0.1 | K137: 1.1 | L137: 0.5 | M137: 0.5 | N137: 0.5 | O137: 0.5 | P137: 8.9 | Q137: 2.966666667 | R137: 6 | S137: 7 | T137: 8 | U137: 7 | V137: 8 | W137: 9 | X137: 0 | Y137: 0 | Z137: 13 | AA137: 15 | AB137: 108 | AC137: 118 | AD137: 308 | AE137: 250 | AF137: 364 | AG137: 172 | AH137: 168 | AI137: 36 | AJ137: 24 | AK137: 1 | AL137: 0 | AM137: 0
A138: 0.1 | B138: 0.1 | C138: 1.1 | D138: 0.1 | E138: 1.1 | F138: 0.5 | G138: 0.5 | H138: 1.1 | I138: 1.1 | J138: 1.1 | K138: 0.5 | L138: 0.1 | M138: 0.5 | N138: 0.5 | O138: 0.5 | P138: 8.9 | Q138: 2.966666667 | R138: 7 | S138: 6 | T138: 9 | U138: 6 | V138: 9 | W138: 8 | X138: 0 | Y138: 0 | Z138: 11 | AA138: 30 | AB138: 63 | AC138: 207 | AD138: 177 | AE138: 412 | AF138: 211 | AG138: 276 | AH138: 111 | AI138: 57 | AJ138: 18 | AK138: 3 | AL138: 0 | AM138: 0
A139: 0.1 | B139: 0.1 | C139: 1.1 | D139: 0.1 | E139: 1.1 | F139: 0.5 | G139: 0.5 | H139: 1.1 | I139: 1.1 | J139: 1.1 | K139: 0.5 | L139: 0.5 | M139: 0.1 | N139: 0.5 | O139: 0.5 | P139: 8.9 | Q139: 2.966666667 | R139: 7 | S139: 6 | T139: 9 | U139: 6 | V139: 9 | W139: 8 | X139: 0 | Y139: 0 | Z139: 10 | AA139: 30 | AB139: 63 | AC139: 207 | AD139: 177 | AE139: 412 | AF139: 211 | AG139: 276 | AH139: 111 | AI139: 57 | AJ139: 18 | AK139: 3 | AL139: 0 | AM139: 0
A140: 0.1 | B140: 0.1 | C140: 1.1 | D140: 0.1 | E140: 1.1 | F140: 0.5 | G140: 0.5 | H140: 1.1 | I140: 1.1 | J140: 1.1 | K140: 0.5 | L140: 0.5 | M140: 0.5 | N140: 0.1 | O140: 0.5 | P140: 8.9 | Q140: 2.966666667 | R140: 7 | S140: 6 | T140: 9 | U140: 6 | V140: 9 | W140: 8 | X140: 0 | Y140: 0 | Z140: 9 | AA140: 30 | AB140: 63 | AC140: 207 | AD140: 177 | AE140: 412 | AF140: 211 | AG140: 276 | AH140: 111 | AI140: 57 | AJ140: 18 | AK140: 3 | AL140: 0 | AM140: 0
A141: 0.1 | B141: 0.1 | C141: 1.1 | D141: 0.1 | E141: 1.1 | F141: 0.5 | G141: 1.1 | H141: 0.1 | I141: 1.1 | J141: 1.1 | K141: 0.5 | L141: 0.5 | M141: 0.5 | N141: 0.5 | O141: 0.5 | P141: 8.9 | Q141: 2.966666667 | R141: 6 | S141: 7 | T141: 8 | U141: 7 | V141: 8 | W141: 9 | X141: 0 | Y141: 0 | Z141: 14 | AA141: 12 | AB141: 106 | AC141: 118 | AD141: 308 | AE141: 250 | AF141: 364 | AG141: 172 | AH141: 168 | AI141: 36 | AJ141: 24 | AK141: 1 | AL141: 0 | AM141: 0
A142: 0.1 | B142: 0.1 | C142: 1.1 | D142: 0.1 | E142: 1.1 | F142: 0.5 | G142: 1.1 | H142: 1.1 | I142: 0.1 | J142: 1.1 | K142: 0.5 | L142: 0.5 | M142: 0.5 | N142: 0.5 | O142: 0.5 | P142: 8.9 | Q142: 2.966666667 | R142: 6 | S142: 7 | T142: 8 | U142: 7 | V142: 8 | W142: 9 | X142: 0 | Y142: 0 | Z142: 13 | AA142: 12 | AB142: 106 | AC142: 118 | AD142: 308 | AE142: 250 | AF142: 364 | AG142: 172 | AH142: 168 | AI142: 36 | AJ142: 24 | AK142: 1 | AL142: 0 | AM142: 0
A143: 0.1 | B143: 0.1 | C143: 1.1 | D143: 0.1 | E143: 1.1 | F143: 0.5 | G143: 1.1 | H143: 1.1 | I143: 1.1 | J143: 0.1 | K143: 0.5 | L143: 0.5 | M143: 0.5 | N143: 0.5 | O143: 0.5 | P143: 8.9 | Q143: 2.966666667 | R143: 6 | S143: 7 | T143: 8 | U143: 7 | V143: 8 | W143: 9 | X143: 0 | Y143: 0 | Z143: 12 | AA143: 12 | AB143: 106 | AC143: 118 | AD143: 308 | AE143: 250 | AF143: 364 | AG143: 172 | AH143: 168 | AI143: 36 | AJ143: 24 | AK143: 1 | AL143: 0 | AM143: 0
A144: 0.1 | B144: 0.1 | C144: 1.1 | D144: 0.5 | E144: 0.5 | F144: 0.1 | G144: 0.5 | H144: 0.1 | I144: 1.1 | J144: 1.1 | K144: 1.1 | L144: 0.5 | M144: 0.5 | N144: 0.5 | O144: 1.1 | P144: 8.9 | Q144: 2.966666667 | R144: 6 | S144: 7 | T144: 8 | U144: 7 | V144: 8 | W144: 9 | X144: 0 | Y144: 0 | Z144: 17 | AA144: 18 | AB144: 109 | AC144: 118 | AD144: 301 | AE144: 244 | AF144: 362 | AG144: 172 | AH144: 168 | AI144: 36 | AJ144: 24 | AK144: 1 | AL144: 0 | AM144: 0
A145: 0.1 | B145: 0.1 | C145: 1.1 | D145: 0.5 | E145: 0.5 | F145: 0.1 | G145: 0.5 | H145: 1.1 | I145: 0.1 | J145: 1.1 | K145: 1.1 | L145: 0.5 | M145: 0.5 | N145: 0.5 | O145: 1.1 | P145: 8.9 | Q145: 2.966666667 | R145: 6 | S145: 7 | T145: 8 | U145: 7 | V145: 8 | W145: 9 | X145: 0 | Y145: 0 | Z145: 16 | AA145: 18 | AB145: 109 | AC145: 118 | AD145: 301 | AE145: 244 | AF145: 362 | AG145: 172 | AH145: 168 | AI145: 36 | AJ145: 24 | AK145: 1 | AL145: 0 | AM145: 0
A146: 0.1 | B146: 0.1 | C146: 1.1 | D146: 0.5 | E146: 0.5 | F146: 0.1 | G146: 0.5 | H146: 1.1 | I146: 1.1 | J146: 0.1 | K146: 1.1 | L146: 0.5 | M146: 0.5 | N146: 0.5 | O146: 1.1 | P146: 8.9 | Q146: 2.966666667 | R146: 6 | S146: 7 | T146: 8 | U146: 7 | V146: 8 | W146: 9 | X146: 0 | Y146: 0 | Z146: 15 | AA146: 18 | AB146: 109 | AC146: 118 | AD146: 301 | AE146: 244 | AF146: 362 | AG146: 172 | AH146: 168 | AI146: 36 | AJ146: 24 | AK146: 1 | AL146: 0 | AM146: 0
A147: 0.1 | B147: 0.1 | C147: 1.1 | D147: 0.5 | E147: 0.5 | F147: 0.1 | G147: 0.5 | H147: 1.1 | I147: 1.1 | J147: 1.1 | K147: 0.5 | L147: 0.1 | M147: 0.5 | N147: 0.5 | O147: 1.1 | P147: 8.9 | Q147: 2.966666667 | R147: 7 | S147: 6 | T147: 9 | U147: 6 | V147: 9 | W147: 8 | X147: 0 | Y147: 0 | Z147: 13 | AA147: 33 | AB147: 64 | AC147: 207 | AD147: 171 | AE147: 403 | AF147: 211 | AG147: 276 | AH147: 111 | AI147: 57 | AJ147: 18 | AK147: 3 | AL147: 0 | AM147: 0
A148: 0.1 | B148: 0.1 | C148: 1.1 | D148: 0.5 | E148: 0.5 | F148: 0.1 | G148: 0.5 | H148: 1.1 | I148: 1.1 | J148: 1.1 | K148: 0.5 | L148: 0.5 | M148: 0.1 | N148: 0.5 | O148: 1.1 | P148: 8.9 | Q148: 2.966666667 | R148: 7 | S148: 6 | T148: 9 | U148: 6 | V148: 9 | W148: 8 | X148: 0 | Y148: 0 | Z148: 12 | AA148: 33 | AB148: 64 | AC148: 207 | AD148: 171 | AE148: 403 | AF148: 211 | AG148: 276 | AH148: 111 | AI148: 57 | AJ148: 18 | AK148: 3 | AL148: 0 | AM148: 0
A149: 0.1 | B149: 0.1 | C149: 1.1 | D149: 0.5 | E149: 0.5 | F149: 0.1 | G149: 0.5 | H149: 1.1 | I149: 1.1 | J149: 1.1 | K149: 0.5 | L149: 0.5 | M149: 0.5 | N149: 0.1 | O149: 1.1 | P149: 8.9 | Q149: 2.966666667 | R149: 7 | S149: 6 | T149: 9 | U149: 6 | V149: 9 | W149: 8 | X149: 0 | Y149: 0 | Z149: 11 | AA149: 33 | AB149: 64 | AC149: 207 | AD149: 171 | AE149: 403 | AF149: 211 | AG149: 276 | AH149: 111 | AI149: 57 | AJ149: 18 | AK149: 3 | AL149: 0 | AM149: 0
A150: 0.1 | B150: 0.1 | C150: 1.1 | D150: 0.5 | E150: 0.5 | F150: 0.1 | G150: 0.5 | H150: 1.1 | I150: 1.1 | J150: 1.1 | K150: 1.1 | L150: 0.1 | M150: 0.5 | N150: 0.5 | O150: 0.5 | P150: 8.9 | Q150: 2.966666667 | R150: 7 | S150: 6 | T150: 9 | U150: 6 | V150: 9 | W150: 8 | X150: 0 | Y150: 0 | Z150: 12 | AA150: 33 | AB150: 62 | AC150: 207 | AD150: 171 | AE150: 403 | AF150: 211 | AG150: 276 | AH150: 111 | AI150: 57 | AJ150: 18 | AK150: 3 | AL150: 0 | AM150: 0
A151: 0.1 | B151: 0.1 | C151: 1.1 | D151: 0.5 | E151: 0.5 | F151: 0.1 | G151: 0.5 | H151: 1.1 | I151: 1.1 | J151: 1.1 | K151: 1.1 | L151: 0.5 | M151: 0.1 | N151: 0.5 | O151: 0.5 | P151: 8.9 | Q151: 2.966666667 | R151: 7 | S151: 6 | T151: 9 | U151: 6 | V151: 9 | W151: 8 | X151: 0 | Y151: 0 | Z151: 11 | AA151: 33 | AB151: 62 | AC151: 207 | AD151: 171 | AE151: 403 | AF151: 211 | AG151: 276 | AH151: 111 | AI151: 57 | AJ151: 18 | AK151: 3 | AL151: 0 | AM151: 0
A152: 0.1 | B152: 0.1 | C152: 1.1 | D152: 0.5 | E152: 0.5 | F152: 0.1 | G152: 0.5 | H152: 1.1 | I152: 1.1 | J152: 1.1 | K152: 1.1 | L152: 0.5 | M152: 0.5 | N152: 0.1 | O152: 0.5 | P152: 8.9 | Q152: 2.966666667 | R152: 7 | S152: 6 | T152: 9 | U152: 6 | V152: 9 | W152: 8 | X152: 0 | Y152: 0 | Z152: 10 | AA152: 33 | AB152: 62 | AC152: 207 | AD152: 171 | AE152: 403 | AF152: 211 | AG152: 276 | AH152: 111 | AI152: 57 | AJ152: 18 | AK152: 3 | AL152: 0 | AM152: 0
A153: 0.1 | B153: 0.1 | C153: 1.1 | D153: 0.5 | E153: 0.5 | F153: 0.1 | G153: 1.1 | H153: 0.1 | I153: 1.1 | J153: 1.1 | K153: 0.5 | L153: 0.5 | M153: 0.5 | N153: 0.5 | O153: 1.1 | P153: 8.9 | Q153: 2.966666667 | R153: 6 | S153: 7 | T153: 8 | U153: 7 | V153: 8 | W153: 9 | X153: 0 | Y153: 0 | Z153: 16 | AA153: 15 | AB153: 107 | AC153: 115 | AD153: 301 | AE153: 244 | AF153: 362 | AG153: 172 | AH153: 168 | AI153: 36 | AJ153: 24 | AK153: 1 | AL153: 0 | AM153: 0
A154: 0.1 | B154: 0.1 | C154: 1.1 | D154: 0.5 | E154: 0.5 | F154: 0.1 | G154: 1.1 | H154: 0.1 | I154: 1.1 | J154: 1.1 | K154: 1.1 | L154: 0.5 | M154: 0.5 | N154: 0.5 | O154: 0.5 | P154: 8.9 | Q154: 2.966666667 | R154: 6 | S154: 7 | T154: 8 | U154: 7 | V154: 8 | W154: 9 | X154: 0 | Y154: 0 | Z154: 15 | AA154: 15 | AB154: 107 | AC154: 115 | AD154: 301 | AE154: 244 | AF154: 362 | AG154: 172 | AH154: 168 | AI154: 36 | AJ154: 24 | AK154: 1 | AL154: 0 | AM154: 0
A155: 0.1 | B155: 0.1 | C155: 1.1 | D155: 0.5 | E155: 0.5 | F155: 0.1 | G155: 1.1 | H155: 1.1 | I155: 0.1 | J155: 1.1 | K155: 0.5 | L155: 0.5 | M155: 0.5 | N155: 0.5 | O155: 1.1 | P155: 8.9 | Q155: 2.966666667 | R155: 6 | S155: 7 | T155: 8 | U155: 7 | V155: 8 | W155: 9 | X155: 0 | Y155: 0 | Z155: 15 | AA155: 15 | AB155: 106 | AC155: 115 | AD155: 301 | AE155: 244 | AF155: 362 | AG155: 172 | AH155: 168 | AI155: 36 | AJ155: 24 | AK155: 1 | AL155: 0 | AM155: 0
A156: 0.1 | B156: 0.1 | C156: 1.1 | D156: 0.5 | E156: 0.5 | F156: 0.1 | G156: 1.1 | H156: 1.1 | I156: 0.1 | J156: 1.1 | K156: 1.1 | L156: 0.5 | M156: 0.5 | N156: 0.5 | O156: 0.5 | P156: 8.9 | Q156: 2.966666667 | R156: 6 | S156: 7 | T156: 8 | U156: 7 | V156: 8 | W156: 9 | X156: 0 | Y156: 0 | Z156: 14 | AA156: 15 | AB156: 106 | AC156: 115 | AD156: 301 | AE156: 244 | AF156: 362 | AG156: 172 | AH156: 168 | AI156: 36 | AJ156: 24 | AK156: 1 | AL156: 0 | AM156: 0
A157: 0.1 | B157: 0.1 | C157: 1.1 | D157: 0.5 | E157: 0.5 | F157: 0.1 | G157: 1.1 | H157: 1.1 | I157: 1.1 | J157: 0.1 | K157: 0.5 | L157: 0.5 | M157: 0.5 | N157: 0.5 | O157: 1.1 | P157: 8.9 | Q157: 2.966666667 | R157: 6 | S157: 7 | T157: 8 | U157: 7 | V157: 8 | W157: 9 | X157: 0 | Y157: 0 | Z157: 14 | AA157: 15 | AB157: 105 | AC157: 115 | AD157: 301 | AE157: 244 | AF157: 362 | AG157: 172 | AH157: 168 | AI157: 36 | AJ157: 24 | AK157: 1 | AL157: 0 | AM157: 0
A158: 0.1 | B158: 0.1 | C158: 1.1 | D158: 0.5 | E158: 0.5 | F158: 0.1 | G158: 1.1 | H158: 1.1 | I158: 1.1 | J158: 0.1 | K158: 1.1 | L158: 0.5 | M158: 0.5 | N158: 0.5 | O158: 0.5 | P158: 8.9 | Q158: 2.966666667 | R158: 6 | S158: 7 | T158: 8 | U158: 7 | V158: 8 | W158: 9 | X158: 0 | Y158: 0 | Z158: 13 | AA158: 15 | AB158: 105 | AC158: 115 | AD158: 301 | AE158: 244 | AF158: 362 | AG158: 172 | AH158: 168 | AI158: 36 | AJ158: 24 | AK158: 1 | AL158: 0 | AM158: 0
A159: 0.1 | B159: 0.1 | C159: 1.1 | D159: 0.5 | E159: 0.5 | F159: 0.1 | G159: 1.1 | H159: 1.1 | I159: 1.1 | J159: 1.1 | K159: 0.5 | L159: 0.1 | M159: 0.5 | N159: 0.5 | O159: 0.5 | P159: 8.9 | Q159: 2.966666667 | R159: 7 | S159: 6 | T159: 9 | U159: 6 | V159: 9 | W159: 8 | X159: 0 | Y159: 0 | Z159: 11 | AA159: 30 | AB159: 60 | AC159: 204 | AD159: 171 | AE159: 403 | AF159: 211 | AG159: 276 | AH159: 111 | AI159: 57 | AJ159: 18 | AK159: 3 | AL159: 0 | AM159: 0
A160: 0.1 | B160: 0.1 | C160: 1.1 | D160: 0.5 | E160: 0.5 | F160: 0.1 | G160: 1.1 | H160: 1.1 | I160: 1.1 | J160: 1.1 | K160: 0.5 | L160: 0.5 | M160: 0.1 | N160: 0.5 | O160: 0.5 | P160: 8.9 | Q160: 2.966666667 | R160: 7 | S160: 6 | T160: 9 | U160: 6 | V160: 9 | W160: 8 | X160: 0 | Y160: 0 | Z160: 10 | AA160: 30 | AB160: 60 | AC160: 204 | AD160: 171 | AE160: 403 | AF160: 211 | AG160: 276 | AH160: 111 | AI160: 57 | AJ160: 18 | AK160: 3 | AL160: 0 | AM160: 0
A161: 0.1 | B161: 0.1 | C161: 1.1 | D161: 0.5 | E161: 0.5 | F161: 0.1 | G161: 1.1 | H161: 1.1 | I161: 1.1 | J161: 1.1 | K161: 0.5 | L161: 0.5 | M161: 0.5 | N161: 0.1 | O161: 0.5 | P161: 8.9 | Q161: 2.966666667 | R161: 7 | S161: 6 | T161: 9 | U161: 6 | V161: 9 | W161: 8 | X161: 0 | Y161: 0 | Z161: 9 | AA161: 30 | AB161: 60 | AC161: 204 | AD161: 171 | AE161: 403 | AF161: 211 | AG161: 276 | AH161: 111 | AI161: 57 | AJ161: 18 | AK161: 3 | AL161: 0 | AM161: 0
A162: 0.1 | B162: 0.1 | C162: 1.1 | D162: 0.5 | E162: 0.5 | F162: 0.5 | G162: 0.5 | H162: 0.1 | I162: 1.1 | J162: 1.1 | K162: 1.1 | L162: 0.1 | M162: 0.5 | N162: 0.5 | O162: 1.1 | P162: 8.9 | Q162: 2.966666667 | R162: 6 | S162: 7 | T162: 8 | U162: 7 | V162: 8 | W162: 9 | X162: 0 | Y162: 0 | Z162: 16 | AA162: 16 | AB162: 105 | AC162: 113 | AD162: 297 | AE162: 242 | AF162: 362 | AG162: 172 | AH162: 168 | AI162: 36 | AJ162: 24 | AK162: 1 | AL162: 0 | AM162: 0
A163: 0.1 | B163: 0.1 | C163: 1.1 | D163: 0.5 | E163: 0.5 | F163: 0.5 | G163: 0.5 | H163: 0.1 | I163: 1.1 | J163: 1.1 | K163: 1.1 | L163: 0.5 | M163: 0.1 | N163: 0.5 | O163: 1.1 | P163: 8.9 | Q163: 2.966666667 | R163: 6 | S163: 7 | T163: 8 | U163: 7 | V163: 8 | W163: 9 | X163: 0 | Y163: 0 | Z163: 15 | AA163: 16 | AB163: 105 | AC163: 113 | AD163: 297 | AE163: 242 | AF163: 362 | AG163: 172 | AH163: 168 | AI163: 36 | AJ163: 24 | AK163: 1 | AL163: 0 | AM163: 0
A164: 0.1 | B164: 0.1 | C164: 1.1 | D164: 0.5 | E164: 0.5 | F164: 0.5 | G164: 0.5 | H164: 0.1 | I164: 1.1 | J164: 1.1 | K164: 1.1 | L164: 0.5 | M164: 0.5 | N164: 0.1 | O164: 1.1 | P164: 8.9 | Q164: 2.966666667 | R164: 6 | S164: 7 | T164: 8 | U164: 7 | V164: 8 | W164: 9 | X164: 0 | Y164: 0 | Z164: 14 | AA164: 16 | AB164: 105 | AC164: 113 | AD164: 297 | AE164: 242 | AF164: 362 | AG164: 172 | AH164: 168 | AI164: 36 | AJ164: 24 | AK164: 1 | AL164: 0 | AM164: 0
A165: 0.1 | B165: 0.1 | C165: 1.1 | D165: 0.5 | E165: 0.5 | F165: 0.5 | G165: 0.5 | H165: 1.1 | I165: 0.1 | J165: 1.1 | K165: 1.1 | L165: 0.1 | M165: 0.5 | N165: 0.5 | O165: 1.1 | P165: 8.9 | Q165: 2.966666667 | R165: 6 | S165: 7 | T165: 8 | U165: 7 | V165: 8 | W165: 9 | X165: 0 | Y165: 0 | Z165: 15 | AA165: 16 | AB165: 103 | AC165: 113 | AD165: 297 | AE165: 242 | AF165: 362 | AG165: 172 | AH165: 168 | AI165: 36 | AJ165: 24 | AK165: 1 | AL165: 0 | AM165: 0
A166: 0.1 | B166: 0.1 | C166: 1.1 | D166: 0.5 | E166: 0.5 | F166: 0.5 | G166: 0.5 | H166: 1.1 | I166: 0.1 | J166: 1.1 | K166: 1.1 | L166: 0.5 | M166: 0.1 | N166: 0.5 | O166: 1.1 | P166: 8.9 | Q166: 2.966666667 | R166: 6 | S166: 7 | T166: 8 | U166: 7 | V166: 8 | W166: 9 | X166: 0 | Y166: 0 | Z166: 14 | AA166: 16 | AB166: 103 | AC166: 113 | AD166: 297 | AE166: 242 | AF166: 362 | AG166: 172 | AH166: 168 | AI166: 36 | AJ166: 24 | AK166: 1 | AL166: 0 | AM166: 0
A167: 0.1 | B167: 0.1 | C167: 1.1 | D167: 0.5 | E167: 0.5 | F167: 0.5 | G167: 0.5 | H167: 1.1 | I167: 0.1 | J167: 1.1 | K167: 1.1 | L167: 0.5 | M167: 0.5 | N167: 0.1 | O167: 1.1 | P167: 8.9 | Q167: 2.966666667 | R167: 6 | S167: 7 | T167: 8 | U167: 7 | V167: 8 | W167: 9 | X167: 0 | Y167: 0 | Z167: 13 | AA167: 16 | AB167: 103 | AC167: 113 | AD167: 297 | AE167: 242 | AF167: 362 | AG167: 172 | AH167: 168 | AI167: 36 | AJ167: 24 | AK167: 1 | AL167: 0 | AM167: 0
A168: 0.1 | B168: 0.1 | C168: 1.1 | D168: 0.5 | E168: 0.5 | F168: 0.5 | G168: 0.5 | H168: 1.1 | I168: 1.1 | J168: 0.1 | K168: 1.1 | L168: 0.1 | M168: 0.5 | N168: 0.5 | O168: 1.1 | P168: 8.9 | Q168: 2.966666667 | R168: 6 | S168: 7 | T168: 8 | U168: 7 | V168: 8 | W168: 9 | X168: 0 | Y168: 0 | Z168: 14 | AA168: 16 | AB168: 101 | AC168: 113 | AD168: 297 | AE168: 242 | AF168: 362 | AG168: 172 | AH168: 168 | AI168: 36 | AJ168: 24 | AK168: 1 | AL168: 0 | AM168: 0
A169: 0.1 | B169: 0.1 | C169: 1.1 | D169: 0.5 | E169: 0.5 | F169: 0.5 | G169: 0.5 | H169: 1.1 | I169: 1.1 | J169: 0.1 | K169: 1.1 | L169: 0.5 | M169: 0.1 | N169: 0.5 | O169: 1.1 | P169: 8.9 | Q169: 2.966666667 | R169: 6 | S169: 7 | T169: 8 | U169: 7 | V169: 8 | W169: 9 | X169: 0 | Y169: 0 | Z169: 13 | AA169: 16 | AB169: 101 | AC169: 113 | AD169: 297 | AE169: 242 | AF169: 362 | AG169: 172 | AH169: 168 | AI169: 36 | AJ169: 24 | AK169: 1 | AL169: 0 | AM169: 0
A170: 0.1 | B170: 0.1 | C170: 1.1 | D170: 0.5 | E170: 0.5 | F170: 0.5 | G170: 0.5 | H170: 1.1 | I170: 1.1 | J170: 0.1 | K170: 1.1 | L170: 0.5 | M170: 0.5 | N170: 0.1 | O170: 1.1 | P170: 8.9 | Q170: 2.966666667 | R170: 6 | S170: 7 | T170: 8 | U170: 7 | V170: 8 | W170: 9 | X170: 0 | Y170: 0 | Z170: 12 | AA170: 16 | AB170: 101 | AC170: 113 | AD170: 297 | AE170: 242 | AF170: 362 | AG170: 172 | AH170: 168 | AI170: 36 | AJ170: 24 | AK170: 1 | AL170: 0 | AM170: 0
A171: 0.1 | B171: 0.1 | C171: 1.1 | D171: 0.5 | E171: 0.5 | F171: 0.5 | G171: 0.5 | H171: 1.1 | I171: 1.1 | J171: 1.1 | K171: 0.5 | L171: 0.1 | M171: 0.1 | N171: 0.5 | O171: 1.1 | P171: 8.9 | Q171: 2.966666667 | R171: 7 | S171: 6 | T171: 9 | U171: 6 | V171: 9 | W171: 8 | X171: 0 | Y171: 0 | Z171: 11 | AA171: 30 | AB171: 59 | AC171: 198 | AD171: 169 | AE171: 400 | AF171: 211 | AG171: 276 | AH171: 111 | AI171: 57 | AJ171: 18 | AK171: 3 | AL171: 0 | AM171: 0
A172: 0.1 | B172: 0.1 | C172: 1.1 | D172: 0.5 | E172: 0.5 | F172: 0.5 | G172: 0.5 | H172: 1.1 | I172: 1.1 | J172: 1.1 | K172: 0.5 | L172: 0.1 | M172: 0.5 | N172: 0.1 | O172: 1.1 | P172: 8.9 | Q172: 2.966666667 | R172: 7 | S172: 6 | T172: 9 | U172: 6 | V172: 9 | W172: 8 | X172: 0 | Y172: 0 | Z172: 10 | AA172: 30 | AB172: 59 | AC172: 198 | AD172: 169 | AE172: 400 | AF172: 211 | AG172: 276 | AH172: 111 | AI172: 57 | AJ172: 18 | AK172: 3 | AL172: 0 | AM172: 0
A173: 0.1 | B173: 0.1 | C173: 1.1 | D173: 0.5 | E173: 0.5 | F173: 0.5 | G173: 0.5 | H173: 1.1 | I173: 1.1 | J173: 1.1 | K173: 0.5 | L173: 0.5 | M173: 0.1 | N173: 0.1 | O173: 1.1 | P173: 8.9 | Q173: 2.966666667 | R173: 7 | S173: 6 | T173: 9 | U173: 6 | V173: 9 | W173: 8 | X173: 0 | Y173: 0 | Z173: 9 | AA173: 30 | AB173: 59 | AC173: 198 | AD173: 169 | AE173: 400 | AF173: 211 | AG173: 276 | AH173: 111 | AI173: 57 | AJ173: 18 | AK173: 3 | AL173: 0 | AM173: 0
A174: 0.1 | B174: 0.1 | C174: 1.1 | D174: 0.5 | E174: 0.5 | F174: 0.5 | G174: 0.5 | H174: 1.1 | I174: 1.1 | J174: 1.1 | K174: 1.1 | L174: 0.1 | M174: 0.1 | N174: 0.5 | O174: 0.5 | P174: 8.9 | Q174: 2.966666667 | R174: 7 | S174: 6 | T174: 9 | U174: 6 | V174: 9 | W174: 8 | X174: 0 | Y174: 0 | Z174: 10 | AA174: 30 | AB174: 57 | AC174: 198 | AD174: 169 | AE174: 400 | AF174: 211 | AG174: 276 | AH174: 111 | AI174: 57 | AJ174: 18 | AK174: 3 | AL174: 0 | AM174: 0
A175: 0.1 | B175: 0.1 | C175: 1.1 | D175: 0.5 | E175: 0.5 | F175: 0.5 | G175: 0.5 | H175: 1.1 | I175: 1.1 | J175: 1.1 | K175: 1.1 | L175: 0.1 | M175: 0.5 | N175: 0.1 | O175: 0.5 | P175: =SUM(A175:O175) -> 8.9 | Q175: =P175/3 -> 2.966666667 | R175: 7 | S175: 6 | T175: 9 | U175: 6 | V175: 9 | W175: 8 | X175: 0 | Y175: 0 | Z175: 9 | AA175: 30 | AB175: 57 | AC175: 198 | AD175: 169 | AE175: 400 | AF175: 211 | AG175: 276 | AH175: 111 | AI175: 57 | AJ175: 18 | AK175: 3 | AL175: 0 | AM175: 0
A176: 0.1 | B176: 0.1 | C176: 1.1 | D176: 0.5 | E176: 0.5 | F176: 0.5 | G176: 0.5 | H176: 1.1 | I176: 1.1 | J176: 1.1 | K176: 1.1 | L176: 0.5 | M176: 0.1 | N176: 0.1 | O176: 0.5 | P176: 8.9 | Q176: 2.966666667 | R176: 7 | S176: 6 | T176: 9 | U176: 6 | V176: 9 | W176: 8 | X176: 0 | Y176: 0 | Z176: 8 | AA176: 30 | AB176: 57 | AC176: 198 | AD176: 169 | AE176: 400 | AF176: 211 | AG176: 276 | AH176: 111 | AI176: 57 | AJ176: 18 | AK176: 3 | AL176: 0 | AM176: 0
A177: 0.1 | B177: 0.1 | C177: 1.1 | D177: 0.5 | E177: 0.5 | F177: 0.5 | G177: 1.1 | H177: 0.1 | I177: 0.1 | J177: 1.1 | K177: 1.1 | L177: 0.5 | M177: 0.5 | N177: 0.5 | O177: 1.1 | P177: 8.9 | Q177: 2.966666667 | R177: 5 | S177: 8 | T177: 7 | U177: 8 | V177: 7 | W177: 10 | X177: 0 | Y177: 0 | Z177: 15 | AA177: 14 | AB177: 76 | AC177: 196 | AD177: 143 | AE177: 414 | AF177: 208 | AG177: 280 | AH177: 111 | AI177: 60 | AJ177: 20 | AK177: 0 | AL177: 0 | AM177: 0
A178: 0.1 | B178: 0.1 | C178: 1.1 | D178: 0.5 | E178: 0.5 | F178: 0.5 | G178: 1.1 | H178: 0.1 | I178: 1.1 | J178: 0.1 | K178: 1.1 | L178: 0.5 | M178: 0.5 | N178: 0.5 | O178: 1.1 | P178: 8.9 | Q178: 2.966666667 | R178: 5 | S178: 8 | T178: 7 | U178: 8 | V178: 7 | W178: 10 | X178: 0 | Y178: 0 | Z178: 14 | AA178: 14 | AB178: 76 | AC178: 196 | AD178: 143 | AE178: 414 | AF178: 208 | AG178: 280 | AH178: 111 | AI178: 60 | AJ178: 20 | AK178: 0 | AL178: 0 | AM178: 0
A179: 0.1 | B179: 0.1 | C179: 1.1 | D179: 0.5 | E179: 0.5 | F179: 0.5 | G179: 1.1 | H179: 0.1 | I179: 1.1 | J179: 1.1 | K179: 0.5 | L179: 0.1 | M179: 0.5 | N179: 0.5 | O179: 1.1 | P179: 8.9 | Q179: 2.966666667 | R179: 6 | S179: 7 | T179: 8 | U179: 7 | V179: 8 | W179: 9 | X179: 0 | Y179: 0 | Z179: 15 | AA179: 12 | AB179: 101 | AC179: 110 | AD179: 293 | AE179: 241 | AF179: 362 | AG179: 172 | AH179: 168 | AI179: 36 | AJ179: 24 | AK179: 1 | AL179: 0 | AM179: 0
A180: 0.1 | B180: 0.1 | C180: 1.1 | D180: 0.5 | E180: 0.5 | F180: 0.5 | G180: 1.1 | H180: 0.1 | I180: 1.1 | J180: 1.1 | K180: 0.5 | L180: 0.5 | M180: 0.1 | N180: 0.5 | O180: 1.1 | P180: 8.9 | Q180: 2.966666667 | R180: 6 | S180: 7 | T180: 8 | U180: 7 | V180: 8 | W180: 9 | X180: 0 | Y180: 0 | Z180: 14 | AA180: 12 | AB180: 101 | AC180: 110 | AD180: 293 | AE180: 241 | AF180: 362 | AG180: 172 | AH180: 168 | AI180: 36 | AJ180: 24 | AK180: 1 | AL180: 0 | AM180: 0
A181: 0.1 | B181: 0.1 | C181: 1.1 | D181: 0.5 | E181: 0.5 | F181: 0.5 | G181: 1.1 | H181: 0.1 | I181: 1.1 | J181: 1.1 | K181: 0.5 | L181: 0.5 | M181: 0.5 | N181: 0.1 | O181: 1.1 | P181: 8.9 | Q181: 2.966666667 | R181: 6 | S181: 7 | T181: 8 | U181: 7 | V181: 8 | W181: 9 | X181: 0 | Y181: 0 | Z181: 13 | AA181: 12 | AB181: 101 | AC181: 110 | AD181: 293 | AE181: 241 | AF181: 362 | AG181: 172 | AH181: 168 | AI181: 36 | AJ181: 24 | AK181: 1 | AL181: 0 | AM181: 0
A182: 0.1 | B182: 0.1 | C182: 1.1 | D182: 0.5 | E182: 0.5 | F182: 0.5 | G182: 1.1 | H182: 0.1 | I182: 1.1 | J182: 1.1 | K182: 1.1 | L182: 0.1 | M182: 0.5 | N182: 0.5 | O182: 0.5 | P182: 8.9 | Q182: 2.966666667 | R182: 6 | S182: 7 | T182: 8 | U182: 7 | V182: 8 | W182: 9 | X182: 0 | Y182: 0 | Z182: 14 | AA182: 12 | AB182: 99 | AC182: 110 | AD182: 293 | AE182: 241 | AF182: 362 | AG182: 172 | AH182: 168 | AI182: 36 | AJ182: 24 | AK182: 1 | AL182: 0 | AM182: 0
A183: 0.1 | B183: 0.1 | C183: 1.1 | D183: 0.5 | E183: 0.5 | F183: 0.5 | G183: 1.1 | H183: 0.1 | I183: 1.1 | J183: 1.1 | K183: 1.1 | L183: 0.5 | M183: 0.1 | N183: 0.5 | O183: 0.5 | P183: 8.9 | Q183: 2.966666667 | R183: 6 | S183: 7 | T183: 8 | U183: 7 | V183: 8 | W183: 9 | X183: 0 | Y183: 0 | Z183: 13 | AA183: 12 | AB183: 99 | AC183: 110 | AD183: 293 | AE183: 241 | AF183: 362 | AG183: 172 | AH183: 168 | AI183: 36 | AJ183: 24 | AK183: 1 | AL183: 0 | AM183: 0
A184: 0.1 | B184: 0.1 | C184: 1.1 | D184: 0.5 | E184: 0.5 | F184: 0.5 | G184: 1.1 | H184: 0.1 | I184: 1.1 | J184: 1.1 | K184: 1.1 | L184: 0.5 | M184: 0.5 | N184: 0.1 | O184: 0.5 | P184: 8.9 | Q184: 2.966666667 | R184: 6 | S184: 7 | T184: 8 | U184: 7 | V184: 8 | W184: 9 | X184: 0 | Y184: 0 | Z184: 12 | AA184: 12 | AB184: 99 | AC184: 110 | AD184: 293 | AE184: 241 | AF184: 362 | AG184: 172 | AH184: 168 | AI184: 36 | AJ184: 24 | AK184: 1 | AL184: 0 | AM184: 0
A185: 0.1 | B185: 0.1 | C185: 1.1 | D185: 0.5 | E185: 0.5 | F185: 0.5 | G185: 1.1 | H185: 1.1 | I185: 0.1 | J185: 0.1 | K185: 1.1 | L185: 0.5 | M185: 0.5 | N185: 0.5 | O185: 1.1 | P185: 8.9 | Q185: 2.966666667 | R185: 5 | S185: 8 | T185: 7 | U185: 8 | V185: 7 | W185: 10 | X185: 0 | Y185: 0 | Z185: 13 | AA185: 14 | AB185: 76 | AC185: 190 | AD185: 143 | AE185: 414 | AF185: 208 | AG185: 280 | AH185: 111 | AI185: 60 | AJ185: 20 | AK185: 0 | AL185: 0 | AM185: 0
A186: 0.1 | B186: 0.1 | C186: 1.1 | D186: 0.5 | E186: 0.5 | F186: 0.5 | G186: 1.1 | H186: 1.1 | I186: 0.1 | J186: 1.1 | K186: 0.5 | L186: 0.1 | M186: 0.5 | N186: 0.5 | O186: 1.1 | P186: 8.9 | Q186: 2.966666667 | R186: 6 | S186: 7 | T186: 8 | U186: 7 | V186: 8 | W186: 9 | X186: 0 | Y186: 0 | Z186: 14 | AA186: 12 | AB186: 98 | AC186: 109 | AD186: 291 | AE186: 241 | AF186: 362 | AG186: 172 | AH186: 168 | AI186: 36 | AJ186: 24 | AK186: 1 | AL186: 0 | AM186: 0
A187: 0.1 | B187: 0.1 | C187: 1.1 | D187: 0.5 | E187: 0.5 | F187: 0.5 | G187: 1.1 | H187: 1.1 | I187: 0.1 | J187: 1.1 | K187: 0.5 | L187: 0.5 | M187: 0.1 | N187: 0.5 | O187: 1.1 | P187: 8.9 | Q187: 2.966666667 | R187: 6 | S187: 7 | T187: 8 | U187: 7 | V187: 8 | W187: 9 | X187: 0 | Y187: 0 | Z187: 13 | AA187: 12 | AB187: 98 | AC187: 109 | AD187: 291 | AE187: 241 | AF187: 362 | AG187: 172 | AH187: 168 | AI187: 36 | AJ187: 24 | AK187: 1 | AL187: 0 | AM187: 0
A188: 0.1 | B188: 0.1 | C188: 1.1 | D188: 0.5 | E188: 0.5 | F188: 0.5 | G188: 1.1 | H188: 1.1 | I188: 0.1 | J188: 1.1 | K188: 0.5 | L188: 0.5 | M188: 0.5 | N188: 0.1 | O188: 1.1 | P188: 8.9 | Q188: 2.966666667 | R188: 6 | S188: 7 | T188: 8 | U188: 7 | V188: 8 | W188: 9 | X188: 0 | Y188: 0 | Z188: 12 | AA188: 12 | AB188: 98 | AC188: 109 | AD188: 291 | AE188: 241 | AF188: 362 | AG188: 172 | AH188: 168 | AI188: 36 | AJ188: 24 | AK188: 1 | AL188: 0 | AM188: 0
A189: 0.1 | B189: 0.1 | C189: 1.1 | D189: 0.5 | E189: 0.5 | F189: 0.5 | G189: 1.1 | H189: 1.1 | I189: 0.1 | J189: 1.1 | K189: 1.1 | L189: 0.1 | M189: 0.5 | N189: 0.5 | O189: 0.5 | P189: 8.9 | Q189: 2.966666667 | R189: 6 | S189: 7 | T189: 8 | U189: 7 | V189: 8 | W189: 9 | X189: 0 | Y189: 0 | Z189: 13 | AA189: 12 | AB189: 96 | AC189: 109 | AD189: 291 | AE189: 241 | AF189: 362 | AG189: 172 | AH189: 168 | AI189: 36 | AJ189: 24 | AK189: 1 | AL189: 0 | AM189: 0
A190: 0.1 | B190: 0.1 | C190: 1.1 | D190: 0.5 | E190: 0.5 | F190: 0.5 | G190: 1.1 | H190: 1.1 | I190: 0.1 | J190: 1.1 | K190: 1.1 | L190: 0.5 | M190: 0.1 | N190: 0.5 | O190: 0.5 | P190: 8.9 | Q190: 2.966666667 | R190: 6 | S190: 7 | T190: 8 | U190: 7 | V190: 8 | W190: 9 | X190: 0 | Y190: 0 | Z190: 12 | AA190: 12 | AB190: 96 | AC190: 109 | AD190: 291 | AE190: 241 | AF190: 362 | AG190: 172 | AH190: 168 | AI190: 36 | AJ190: 24 | AK190: 1 | AL190: 0 | AM190: 0
A191: 0.1 | B191: 0.1 | C191: 1.1 | D191: 0.5 | E191: 0.5 | F191: 0.5 | G191: 1.1 | H191: 1.1 | I191: 0.1 | J191: 1.1 | K191: 1.1 | L191: 0.5 | M191: 0.5 | N191: 0.1 | O191: 0.5 | P191: 8.9 | Q191: 2.966666667 | R191: 6 | S191: 7 | T191: 8 | U191: 7 | V191: 8 | W191: 9 | X191: 0 | Y191: 0 | Z191: 11 | AA191: 12 | AB191: 96 | AC191: 109 | AD191: 291 | AE191: 241 | AF191: 362 | AG191: 172 | AH191: 168 | AI191: 36 | AJ191: 24 | AK191: 1 | AL191: 0 | AM191: 0
A192: 0.1 | B192: 0.1 | C192: 1.1 | D192: 0.5 | E192: 0.5 | F192: 0.5 | G192: 1.1 | H192: 1.1 | I192: 1.1 | J192: 0.1 | K192: 0.5 | L192: 0.1 | M192: 0.5 | N192: 0.5 | O192: 1.1 | P192: 8.9 | Q192: 2.966666667 | R192: 6 | S192: 7 | T192: 8 | U192: 7 | V192: 8 | W192: 9 | X192: 0 | Y192: 0 | Z192: 13 | AA192: 12 | AB192: 95 | AC192: 109 | AD192: 289 | AE192: 241 | AF192: 362 | AG192: 172 | AH192: 168 | AI192: 36 | AJ192: 24 | AK192: 1 | AL192: 0 | AM192: 0
A193: 0.1 | B193: 0.1 | C193: 1.1 | D193: 0.5 | E193: 0.5 | F193: 0.5 | G193: 1.1 | H193: 1.1 | I193: 1.1 | J193: 0.1 | K193: 0.5 | L193: 0.5 | M193: 0.1 | N193: 0.5 | O193: 1.1 | P193: 8.9 | Q193: 2.966666667 | R193: 6 | S193: 7 | T193: 8 | U193: 7 | V193: 8 | W193: 9 | X193: 0 | Y193: 0 | Z193: 12 | AA193: 12 | AB193: 95 | AC193: 109 | AD193: 289 | AE193: 241 | AF193: 362 | AG193: 172 | AH193: 168 | AI193: 36 | AJ193: 24 | AK193: 1 | AL193: 0 | AM193: 0
A194: 0.1 | B194: 0.1 | C194: 1.1 | D194: 0.5 | E194: 0.5 | F194: 0.5 | G194: 1.1 | H194: 1.1 | I194: 1.1 | J194: 0.1 | K194: 0.5 | L194: 0.5 | M194: 0.5 | N194: 0.1 | O194: 1.1 | P194: 8.9 | Q194: 2.966666667 | R194: 6 | S194: 7 | T194: 8 | U194: 7 | V194: 8 | W194: 9 | X194: 0 | Y194: 0 | Z194: 11 | AA194: 12 | AB194: 95 | AC194: 109 | AD194: 289 | AE194: 241 | AF194: 362 | AG194: 172 | AH194: 168 | AI194: 36 | AJ194: 24 | AK194: 1 | AL194: 0 | AM194: 0
A195: 0.1 | B195: 0.1 | C195: 1.1 | D195: 0.5 | E195: 0.5 | F195: 0.5 | G195: 1.1 | H195: 1.1 | I195: 1.1 | J195: 0.1 | K195: 1.1 | L195: 0.1 | M195: 0.5 | N195: 0.5 | O195: 0.5 | P195: 8.9 | Q195: 2.966666667 | R195: 6 | S195: 7 | T195: 8 | U195: 7 | V195: 8 | W195: 9 | X195: 0 | Y195: 0 | Z195: 12 | AA195: 12 | AB195: 93 | AC195: 109 | AD195: 289 | AE195: 241 | AF195: 362 | AG195: 172 | AH195: 168 | AI195: 36 | AJ195: 24 | AK195: 1 | AL195: 0 | AM195: 0
A196: 0.1 | B196: 0.1 | C196: 1.1 | D196: 0.5 | E196: 0.5 | F196: 0.5 | G196: 1.1 | H196: 1.1 | I196: 1.1 | J196: 0.1 | K196: 1.1 | L196: 0.5 | M196: 0.1 | N196: 0.5 | O196: 0.5 | P196: 8.9 | Q196: 2.966666667 | R196: 6 | S196: 7 | T196: 8 | U196: 7 | V196: 8 | W196: 9 | X196: 0 | Y196: 0 | Z196: 11 | AA196: 12 | AB196: 93 | AC196: 109 | AD196: 289 | AE196: 241 | AF196: 362 | AG196: 172 | AH196: 168 | AI196: 36 | AJ196: 24 | AK196: 1 | AL196: 0 | AM196: 0
A197: 0.1 | B197: 0.1 | C197: 1.1 | D197: 0.5 | E197: 0.5 | F197: 0.5 | G197: 1.1 | H197: 1.1 | I197: 1.1 | J197: 0.1 | K197: 1.1 | L197: 0.5 | M197: 0.5 | N197: 0.1 | O197: 0.5 | P197: 8.9 | Q197: 2.966666667 | R197: 6 | S197: 7 | T197: 8 | U197: 7 | V197: 8 | W197: 9 | X197: 0 | Y197: 0 | Z197: 10 | AA197: 12 | AB197: 93 | AC197: 109 | AD197: 289 | AE197: 241 | AF197: 362 | AG197: 172 | AH197: 168 | AI197: 36 | AJ197: 24 | AK197: 1 | AL197: 0 | AM197: 0
A198: 0.1 | B198: 0.1 | C198: 1.1 | D198: 0.5 | E198: 0.5 | F198: 0.5 | G198: 1.1 | H198: 1.1 | I198: 1.1 | J198: 1.1 | K198: 0.5 | L198: 0.1 | M198: 0.1 | N198: 0.5 | O198: 0.5 | P198: 8.9 | Q198: 2.966666667 | R198: 7 | S198: 6 | T198: 9 | U198: 6 | V198: 9 | W198: 8 | X198: 0 | Y198: 0 | Z198: 9 | AA198: 24 | AB198: 55 | AC198: 189 | AD198: 166 | AE198: 397 | AF198: 211 | AG198: 276 | AH198: 111 | AI198: 57 | AJ198: 18 | AK198: 3 | AL198: 0 | AM198: 0
A199: 0.1 | B199: 0.1 | C199: 1.1 | D199: 0.5 | E199: 0.5 | F199: 0.5 | G199: 1.1 | H199: 1.1 | I199: 1.1 | J199: 1.1 | K199: 0.5 | L199: 0.1 | M199: 0.5 | N199: 0.1 | O199: 0.5 | P199: 8.9 | Q199: 2.966666667 | R199: 7 | S199: 6 | T199: 9 | U199: 6 | V199: 9 | W199: 8 | X199: 0 | Y199: 0 | Z199: 8 | AA199: 24 | AB199: 55 | AC199: 189 | AD199: 166 | AE199: 397 | AF199: 211 | AG199: 276 | AH199: 111 | AI199: 57 | AJ199: 18 | AK199: 3 | AL199: 0 | AM199: 0
A200: 0.1 | B200: 0.1 | C200: 1.1 | D200: 0.5 | E200: 0.5 | F200: 0.5 | G200: 1.1 | H200: 1.1 | I200: 1.1 | J200: 1.1 | K200: 0.5 | L200: 0.5 | M200: 0.1 | N200: 0.1 | O200: 0.5 | P200: 8.9 | Q200: 2.966666667 | R200: 7 | S200: 6 | T200: 9 | U200: 6 | V200: 9 | W200: 8 | X200: 0 | Y200: 0 | Z200: 7 | AA200: 24 | AB200: 55 | AC200: 189 | AD200: 166 | AE200: 397 | AF200: 211 | AG200: 276 | AH200: 111 | AI200: 57 | AJ200: 18 | AK200: 3 | AL200: 0 | AM200: 0
... 1531 more rows
